Workbook

Sheet Welcome

Sheet Page2
B13: Size of population served by STD program (all ages)
B15: Reported number of chlamydia cases
B16: Reported number of gonorrhea cases
B17: Reported number of syphilis cases (Primary, secondary, and early latent)

Sheet Page3
B10: Amount of budget decrease
B13: Amount of budget increase
B15: =IF(OR(C10<0,C13<0),"Note: Please do not enter negative values","") -> 
B16: =IF(C10*C13=0,"","Please do not enter values in both boxes above. You can enter a budget decrease in the top box, OR a budget increase in the bottom box.") -> 
B24: =IFERROR(IF(OR((C10/Page2!C13)>2,(C13/Page2!C13)>2),"SPACE MONKEY cannot handle such a large change in funding. The change will be capped at $2 per capita",""),"") -> 

Sheet Page4

Sheet Page5
B9: Input | C9: Default value | D9: Your value Leave blank to use the default value
B10: Number of Disease Intervention Specialists (DIS) employed | C10: =calcs1!B63 -> 0
B11: Annual cost per DIS (salary plus fringe benefits)* | C11: =calcs1!B6 -> 73600
B12: Annual number of STD cases interviewed per DIS | C12: =calcs1!B7 -> 400
B13: Percentage of chlamydia cases interviewed | C13: =calcs1!B10 -> 0.12
B14: Percentage of gonorrhea cases interviewed | C14: =calcs1!B9 -> 0.17
B15: Percentage of syphilis cases interviewed (Primary, secondary, and early latent) | C15: =calcs1!B8 -> 0.89

Sheet Page6

Sheet Results
B4: Year | C4: =IF(calcs1!C41<0,"Percentage increase in STDs due to budget cut","Percentage decrease in STDs due to budget increase") -> Percentage decrease in STDs due to budget increase | D4: =IF(calcs1!C41<0,"Additonal number of syphilis infections","Reduction in number of syphilis infections") -> Reduction in number of syphilis infections | E4: =IF(calcs1!C41<0,"Additonal number of gonorrhea infections","Reduction in number of gonorrhea infections") -> Reduction in number of gonorrhea infections | F4: =IF(calcs1!C41<0,"Additonal number of chlamydia infections","Reduction in number of chlamydia infections") -> Reduction in number of chlamydia infections | G4: =IF(calcs1!C41<0,"Additonal number of STD-attributable HIV infections","Reduction in number of STD-attributable HIV infections") -> Reduction in number of STD-attributable HIV infections | H4: =IF(calcs1!C41<0,"Additonal STD costs","Reduction in STD costs") -> Reduction in STD costs | I4: =IF(calcs1!C41<0,"Additonal HIV costs","Reduction in HIV costs") -> Reduction in HIV costs | J4: =IF(calcs1!C41<0,"Total additonal costs (STD and HIV)","Reduction in total costs (STD + HIV)") -> Reduction in total costs (STD + HIV)
B5: Year 1 | C5: =calcs1!S71 -> 0 | D5: =calcs1!U71 -> 0 | E5: =calcs1!V71 -> 0 | F5: =calcs1!W71 -> 0 | G5: =calcs1!X71 -> 0 | H5: =calcs1!Y71 -> 0 | I5: =calcs1!Z71 -> 0 | J5: =calcs1!AA71 -> 0
B6: Year 2 | C6: =calcs1!S72 -> 0 | D6: =calcs1!U72 -> 0 | E6: =calcs1!V72 -> 0 | F6: =calcs1!W72 -> 0 | G6: =calcs1!X72 -> 0 | H6: =calcs1!Y72 -> 0 | I6: =calcs1!Z72 -> 0 | J6: =calcs1!AA72 -> 0
B7: Year 3 | C7: =calcs1!S73 -> 0 | D7: =calcs1!U73 -> 0 | E7: =calcs1!V73 -> 0 | F7: =calcs1!W73 -> 0 | G7: =calcs1!X73 -> 0 | H7: =calcs1!Y73 -> 0 | I7: =calcs1!Z73 -> 0 | J7: =calcs1!AA73 -> 0
B8: Year 4 | C8: =calcs1!S74 -> 0 | D8: =calcs1!U74 -> 0 | E8: =calcs1!V74 -> 0 | F8: =calcs1!W74 -> 0 | G8: =calcs1!X74 -> 0 | H8: =calcs1!Y74 -> 0 | I8: =calcs1!Z74 -> 0 | J8: =calcs1!AA74 -> 0
B9: Year 5 | C9: =calcs1!S75 -> 0 | D9: =calcs1!U75 -> 0 | E9: =calcs1!V75 -> 0 | F9: =calcs1!W75 -> 0 | G9: =calcs1!X75 -> 0 | H9: =calcs1!Y75 -> 0 | I9: =calcs1!Z75 -> 0 | J9: =calcs1!AA75 -> 0
B10: Year 6 | C10: =calcs1!S76 -> 0 | D10: =calcs1!U76 -> 0 | E10: =calcs1!V76 -> 0 | F10: =calcs1!W76 -> 0 | G10: =calcs1!X76 -> 0 | H10: =calcs1!Y76 -> 0 | I10: =calcs1!Z76 -> 0 | J10: =calcs1!AA76 -> 0
B11: Year 7 | C11: =calcs1!S77 -> 0 | D11: =calcs1!U77 -> 0 | E11: =calcs1!V77 -> 0 | F11: =calcs1!W77 -> 0 | G11: =calcs1!X77 -> 0 | H11: =calcs1!Y77 -> 0 | I11: =calcs1!Z77 -> 0 | J11: =calcs1!AA77 -> 0
B12: Year 8 | C12: =calcs1!S78 -> 0 | D12: =calcs1!U78 -> 0 | E12: =calcs1!V78 -> 0 | F12: =calcs1!W78 -> 0 | G12: =calcs1!X78 -> 0 | H12: =calcs1!Y78 -> 0 | I12: =calcs1!Z78 -> 0 | J12: =calcs1!AA78 -> 0
B13: Year 9 | C13: =calcs1!S79 -> 0 | D13: =calcs1!U79 -> 0 | E13: =calcs1!V79 -> 0 | F13: =calcs1!W79 -> 0 | G13: =calcs1!X79 -> 0 | H13: =calcs1!Y79 -> 0 | I13: =calcs1!Z79 -> 0 | J13: =calcs1!AA79 -> 0
B14: Year 10 | C14: =calcs1!S80 -> 0 | D14: =calcs1!U80 -> 0 | E14: =calcs1!V80 -> 0 | F14: =calcs1!W80 -> 0 | G14: =calcs1!X80 -> 0 | H14: =calcs1!Y80 -> 0 | I14: =calcs1!Z80 -> 0 | J14: =calcs1!AA80 -> 0
B15: 10-year total | D15: =calcs1!U81 -> 0 | E15: =calcs1!V81 -> 0 | F15: =calcs1!W81 -> 0 | G15: =calcs1!X81 -> 0 | H15: =calcs1!Y81 -> 0 | I15: =calcs1!Z81 -> 0 | J15: =calcs1!AA81 -> 0

Sheet Page8
B6: =IF(calcs1!$B$31<0,text_inserts!F7,text_inserts!G7) -> Based on published evidence of the impact of STD prevention programs and the cost of STDs, a budget increase of $0 will result in:
B7: =IF(calcs1!$B$31<0,text_inserts!F8,text_inserts!G8) -> • In the first year alone, there will be an estimated decrease of 0 cases of syphilis (range: 0 to 0), 0 cases of gonorrhea (range: 0 to 0), 0 cases of chlamydia (range: 0 to 0), and 0.0 cases of STD-attributable HIV (range: 0.0 to 0.0).
B8: =IF(calcs1!$B$31<0,text_inserts!F9,text_inserts!G9) -> • Over 10 years, there will be an estimated cumulative decrease of 0 cases of syphilis (range: 0 to 0), 0 cases of gonorrhea (range: 0 to 0), 0 cases of chlamydia (range: 0 to 0), and 0.0 cases of STD-attributable HIV (range: 0 to 0).
B9: =IF(calcs1!$B$31<0,text_inserts!F10,text_inserts!G10) -> • Over 10 years, there will be an estimated cumulative decrease in direct medical costs of $0 (range: 0 to 0) due to decreases in STIs and STI-attributable HIV infections.
B11: =IF(calcs1!$B$31<0,text_inserts!F1,text_inserts!G1) -> With a budget increase of $0, positions for disease intervention specialists will be increased, resulting in:
B12: =IF(calcs1!$B$31<0,text_inserts!F2,text_inserts!G2) -> • Additional DIS interviews or effective behavioral counseling for an estimated 0 patients with STDs.
B13: =IF(calcs1!$B$31<0,text_inserts!F3,text_inserts!G3) -> • DIS are public health professionals who work to find people diagnosed with syphilis and other STDs. DIS work to find new cases of the disease — and to prevent new ones from happening.
B14: =IF(calcs1!$B$31<0,text_inserts!F4,text_inserts!G4) -> • In addition to STDs, DIS fight other disease outbreaks and epidemics, including Ebola, flu, anthrax, and SARS—with additional DIS, we will be better prepared for emergencies.
B15: =IF(calcs1!$B$31<0,text_inserts!F5,text_inserts!G5) -> • Since an estimated 1 in 4 DIS interviews identifies a new STD case, an estimated 0 people with syphilis, gonorrhea, or chlamydia will become aware that they are infected, will be more likely to be treated, and will be less likely to spread STDs in their communities.

Sheet Advanced_options_menu

Sheet Advanced_options_1
B7: Which calculation approach do you want to use? | C7: Use the average of the two approaches (default)

Sheet Advanced_options_2
B7: Input | C7: Default value | D7: Your value (Leave blank to use the default value)
B8: Percent change in STDs relative to % change in number of STD cases interviewed | C8: 0.2
B9: Percent increase in STDs per $1 per capita decrease in STD prevention funding | C9: 0.16
B10: β parameter of residual impact, used to estimate new equilibrium STD incidence | C10: 0.7
B11: Annual number of syphilis infections, nationally | C11: 55400
B12: Annual number of gonorrhea infections, nationally | C12: 820000
B13: Annual number of chlamydia infections, nationally | C13: 2860000
B14: Average lifetime cost per syphilis infection | C14: 770
B15: Average lifetime cost per gonorrhea infection | C15: 230
B16: Average lifetime cost per chlamydia infection | C16: 210
B17: Average lifetime cost per HIV infection (both sexes) | C17: 351000
B18: Probability of STD-attributable HIV infection, per syphilis infection | C18: 0.0105
B19: Probability of STD-attributable HIV infection, per gonorrhea infection | C19: 0.0005
B20: Probability of STD-attributable HIV infection, per chlamydia infection | C20: 0.0005
B21: Reported number of syphilis cases, nationally | C21: =23872+24173 -> 48045
B22: Reported number of gonorrhea cases, nationally | C22: 395216
B23: Reported number of chlamydia cases, nationally | C23: 1526658
B24: Discount rate | C24: 0.03
B25: Number of STD interviews required to yield 1 new case | C25: 4

Sheet Advanced_options_3

Sheet schematic

Sheet lower_bound_results
B4: Year | C4: =IF(calcs1!C41<0,"Percentage increase in STDs due to budget cut","Percentage decrease in STDs due to budget increase") -> Percentage decrease in STDs due to budget increase | D4: =IF(calcs1!C41<0,"Additonal number of syphilis infections","Reduction in number of syphilis infections") -> Reduction in number of syphilis infections | E4: =IF(calcs1!C41<0,"Additonal number of gonorrhea infections","Reduction in number of gonorrhea infections") -> Reduction in number of gonorrhea infections | F4: =IF(calcs1!C41<0,"Additonal number of chlamydia infections","Reduction in number of chlamydia infections") -> Reduction in number of chlamydia infections | G4: =IF(calcs1!C41<0,"Additonal number of STD-attributable HIV infections","Reduction in number of STD-attributable HIV infections") -> Reduction in number of STD-attributable HIV infections | H4: =IF(calcs1!C41<0,"Additonal STD costs","Reduction in STD costs") -> Reduction in STD costs | I4: =IF(calcs1!C41<0,"Additonal HIV costs","Reduction in HIV costs") -> Reduction in HIV costs | J4: =IF(calcs1!C41<0,"Total additonal costs (STD and HIV)","Reduction in total costs (STD + HIV)") -> Reduction in total costs (STD + HIV)
B5: Year 1 | C5: =bounds!B224 -> 0 | D5: =bounds!D224 -> 0 | E5: =bounds!E224 -> 0 | F5: =bounds!F224 -> 0 | G5: =bounds!G224 -> 0 | H5: =bounds!K224 -> 0 | I5: =bounds!L224 -> 0 | J5: =bounds!M224 -> 0
B6: Year 2 | C6: =bounds!B225 -> 0 | D6: =bounds!D225 -> 0 | E6: =bounds!E225 -> 0 | F6: =bounds!F225 -> 0 | G6: =bounds!G225 -> 0 | H6: =bounds!K225 -> 0 | I6: =bounds!L225 -> 0 | J6: =bounds!M225 -> 0
B7: Year 3 | C7: =bounds!B226 -> 0 | D7: =bounds!D226 -> 0 | E7: =bounds!E226 -> 0 | F7: =bounds!F226 -> 0 | G7: =bounds!G226 -> 0 | H7: =bounds!K226 -> 0 | I7: =bounds!L226 -> 0 | J7: =bounds!M226 -> 0
B8: Year 4 | C8: =bounds!B227 -> 0 | D8: =bounds!D227 -> 0 | E8: =bounds!E227 -> 0 | F8: =bounds!F227 -> 0 | G8: =bounds!G227 -> 0 | H8: =bounds!K227 -> 0 | I8: =bounds!L227 -> 0 | J8: =bounds!M227 -> 0
B9: Year 5 | C9: =bounds!B228 -> 0 | D9: =bounds!D228 -> 0 | E9: =bounds!E228 -> 0 | F9: =bounds!F228 -> 0 | G9: =bounds!G228 -> 0 | H9: =bounds!K228 -> 0 | I9: =bounds!L228 -> 0 | J9: =bounds!M228 -> 0
B10: Year 6 | C10: =bounds!B229 -> 0 | D10: =bounds!D229 -> 0 | E10: =bounds!E229 -> 0 | F10: =bounds!F229 -> 0 | G10: =bounds!G229 -> 0 | H10: =bounds!K229 -> 0 | I10: =bounds!L229 -> 0 | J10: =bounds!M229 -> 0
B11: Year 7 | C11: =bounds!B230 -> 0 | D11: =bounds!D230 -> 0 | E11: =bounds!E230 -> 0 | F11: =bounds!F230 -> 0 | G11: =bounds!G230 -> 0 | H11: =bounds!K230 -> 0 | I11: =bounds!L230 -> 0 | J11: =bounds!M230 -> 0
B12: Year 8 | C12: =bounds!B231 -> 0 | D12: =bounds!D231 -> 0 | E12: =bounds!E231 -> 0 | F12: =bounds!F231 -> 0 | G12: =bounds!G231 -> 0 | H12: =bounds!K231 -> 0 | I12: =bounds!L231 -> 0 | J12: =bounds!M231 -> 0
B13: Year 9 | C13: =bounds!B232 -> 0 | D13: =bounds!D232 -> 0 | E13: =bounds!E232 -> 0 | F13: =bounds!F232 -> 0 | G13: =bounds!G232 -> 0 | H13: =bounds!K232 -> 0 | I13: =bounds!L232 -> 0 | J13: =bounds!M232 -> 0
B14: Year 10 | C14: =bounds!B233 -> 0 | D14: =bounds!D233 -> 0 | E14: =bounds!E233 -> 0 | F14: =bounds!F233 -> 0 | G14: =bounds!G233 -> 0 | H14: =bounds!K233 -> 0 | I14: =bounds!L233 -> 0 | J14: =bounds!M233 -> 0
B15: 10-year total | D15: =bounds!D234 -> 0 | E15: =bounds!E234 -> 0 | F15: =bounds!F234 -> 0 | G15: =bounds!G234 -> 0 | H15: =bounds!K234 -> 0 | I15: =bounds!L234 -> 0 | J15: =bounds!M234 -> 0

Sheet upper_bound_results
B4: Year | C4: =IF(calcs1!C41<0,"Percentage increase in STDs due to budget cut","Percentage decrease in STDs due to budget increase") -> Percentage decrease in STDs due to budget increase | D4: =IF(calcs1!C41<0,"Additonal number of syphilis infections","Reduction in number of syphilis infections") -> Reduction in number of syphilis infections | E4: =IF(calcs1!C41<0,"Additonal number of gonorrhea infections","Reduction in number of gonorrhea infections") -> Reduction in number of gonorrhea infections | F4: =IF(calcs1!C41<0,"Additonal number of chlamydia infections","Reduction in number of chlamydia infections") -> Reduction in number of chlamydia infections | G4: =IF(calcs1!C41<0,"Additonal number of STD-attributable HIV infections","Reduction in number of STD-attributable HIV infections") -> Reduction in number of STD-attributable HIV infections | H4: =IF(calcs1!C41<0,"Additonal STD costs","Reduction in STD costs") -> Reduction in STD costs | I4: =IF(calcs1!C41<0,"Additonal HIV costs","Reduction in HIV costs") -> Reduction in HIV costs | J4: =IF(calcs1!C41<0,"Total additonal costs (STD and HIV)","Reduction in total costs (STD + HIV)") -> Reduction in total costs (STD + HIV)
B5: Year 1 | C5: =bounds!B241 -> 0 | D5: =bounds!D241 -> 0 | E5: =bounds!E241 -> 0 | F5: =bounds!F241 -> 0 | G5: =bounds!G241 -> 0 | H5: =bounds!K241 -> 0 | I5: =bounds!L241 -> 0 | J5: =bounds!M241 -> 0
B6: Year 2 | C6: =bounds!B242 -> 0 | D6: =bounds!D242 -> 0 | E6: =bounds!E242 -> 0 | F6: =bounds!F242 -> 0 | G6: =bounds!G242 -> 0 | H6: =bounds!K242 -> 0 | I6: =bounds!L242 -> 0 | J6: =bounds!M242 -> 0
B7: Year 3 | C7: =bounds!B243 -> 0 | D7: =bounds!D243 -> 0 | E7: =bounds!E243 -> 0 | F7: =bounds!F243 -> 0 | G7: =bounds!G243 -> 0 | H7: =bounds!K243 -> 0 | I7: =bounds!L243 -> 0 | J7: =bounds!M243 -> 0
B8: Year 4 | C8: =bounds!B244 -> 0 | D8: =bounds!D244 -> 0 | E8: =bounds!E244 -> 0 | F8: =bounds!F244 -> 0 | G8: =bounds!G244 -> 0 | H8: =bounds!K244 -> 0 | I8: =bounds!L244 -> 0 | J8: =bounds!M244 -> 0
B9: Year 5 | C9: =bounds!B245 -> 0 | D9: =bounds!D245 -> 0 | E9: =bounds!E245 -> 0 | F9: =bounds!F245 -> 0 | G9: =bounds!G245 -> 0 | H9: =bounds!K245 -> 0 | I9: =bounds!L245 -> 0 | J9: =bounds!M245 -> 0
B10: Year 6 | C10: =bounds!B246 -> 0 | D10: =bounds!D246 -> 0 | E10: =bounds!E246 -> 0 | F10: =bounds!F246 -> 0 | G10: =bounds!G246 -> 0 | H10: =bounds!K246 -> 0 | I10: =bounds!L246 -> 0 | J10: =bounds!M246 -> 0
B11: Year 7 | C11: =bounds!B247 -> 0 | D11: =bounds!D247 -> 0 | E11: =bounds!E247 -> 0 | F11: =bounds!F247 -> 0 | G11: =bounds!G247 -> 0 | H11: =bounds!K247 -> 0 | I11: =bounds!L247 -> 0 | J11: =bounds!M247 -> 0
B12: Year 8 | C12: =bounds!B248 -> 0 | D12: =bounds!D248 -> 0 | E12: =bounds!E248 -> 0 | F12: =bounds!F248 -> 0 | G12: =bounds!G248 -> 0 | H12: =bounds!K248 -> 0 | I12: =bounds!L248 -> 0 | J12: =bounds!M248 -> 0
B13: Year 9 | C13: =bounds!B249 -> 0 | D13: =bounds!D249 -> 0 | E13: =bounds!E249 -> 0 | F13: =bounds!F249 -> 0 | G13: =bounds!G249 -> 0 | H13: =bounds!K249 -> 0 | I13: =bounds!L249 -> 0 | J13: =bounds!M249 -> 0
B14: Year 10 | C14: =bounds!B250 -> 0 | D14: =bounds!D250 -> 0 | E14: =bounds!E250 -> 0 | F14: =bounds!F250 -> 0 | G14: =bounds!G250 -> 0 | H14: =bounds!K250 -> 0 | I14: =bounds!L250 -> 0 | J14: =bounds!M250 -> 0
B15: 10-year total | D15: =bounds!D251 -> 0 | E15: =bounds!E251 -> 0 | F15: =bounds!F251 -> 0 | G15: =bounds!G251 -> 0 | H15: =bounds!K251 -> 0 | I15: =bounds!L251 -> 0 | J15: =bounds!M251 -> 0

Sheet ranges (hidden)
B4: Percent change in STDs per $1 change in funding per capita (Β1 parameter) | C4: 0.16 | D4: 0.09 | E4: 0.23 | F4: =C4*(D4/C4) -> 0.09 | G4: =C4*(E4/C4) -> 0.23
B5: Percent change in STDs per 10 percent change in Disease Intervention Specialist (DIS) activities | C5: 0.02 | D5: 0.005 | E5: 0.05 | F5: =C5*(D5/C5) -> 0.005 | G5: =C5*(E5/C5) -> 0.05
B6: Β0 parameter used to phase in the estimated changes in STD incidence (see text) | C6: 0.7 | D6: 0.46 | E6: 0.86 | F6: =MIN(C6,D6) -> 0.46 | G6: =MAX(C6,E6) -> 0.86
B7: Average lifetime cost per syphilis infection | C7: 770 | D7: 385 | E7: 1155 | F7: =MIN(C7,D7) -> 385 | G7: =MAX(C7,E7) -> 1155
B8: Average lifetime cost per gonorrhea infection | C8: 230 | D8: 115 | E8: 345 | F8: 115 | G8: 345
B9: Average lifetime cost per chlamydia infection | C9: 210 | D9: 105 | E9: 315 | F9: 105 | G9: 315
B10: Average lifetime cost per HIV infection (both sexes) | C10: 351000 | D10: 269000 | E10: 427000 | F10: 269000 | G10: 427000
B11: Probability of STD-attributable HIV infection, per syphilis infection | C11: 0.0105 | D11: 0.001 | E11: 0.02 | F11: 0.001 | G11: 0.02
B12: Probability of STD-attributable HIV infection, per gonorrhea infection | C12: 0.0005 | D12: 5e-05 | E12: 0.001 | F12: 5e-05 | G12: 0.001
B13: Probability of STD-attributable HIV infection, per chlamydia infection | C13: 0.0005 | D13: 5e-05 | E13: 0.001 | F13: 5e-05 | G13: 0.001
C16: base case | D16: lower value | E16: upper value
B17: Size of population served by STD program (all ages) | C17: =calcs1!B2 -> 0 | D17: =$C17 -> 0 | E17: =$C17 -> 0
B18: Reported number of syphilis cases | C18: =calcs1!B3 -> 0 | D18: =$C18 -> 0 | E18: 0
B19: Reported number of gonorrhea cases | C19: =calcs1!B4 -> 0 | D19: 0 | E19: 0
B20: Reported number of chlamydia cases | C20: =calcs1!B5 -> 0 | D20: 0 | E20: 0
B21: Annual cost of Disease Intervention Specialist (DIS) | C21: =calcs1!B6 -> 73600 | D21: 73600 | E21: 73600
B22: Annual number of STD cases interviewed per DIS | C22: =calcs1!B7 -> 400 | D22: 400 | E22: 400
B23: Percentage of syphilis cases interviewed | C23: =calcs1!B8 -> 0.89 | D23: 0.89 | E23: 0.89
B24: Percentage of gonorrhea cases interviewed | C24: =calcs1!B9 -> 0.17 | D24: 0.17 | E24: 0.17
B25: Percentage of chlamydia cases interviewed | C25: =calcs1!B10 -> 0.12 | D25: 0.12 | E25: 0.12
B26: number needed to interview to detect new case | C26: =calcs1!B11 -> 4 | D26: 4 | E26: 4
B27: Percent change in STDs relative to % change in number of STD cases interviewed | C27: =calcs1!B12 -> 0.2 | D27: =10*F5 -> 0.05 | E27: =10*G5 -> 0.5
B28: Percent increase in STDs per $1 per capita decrease in STD prevention funding | C28: =calcs1!B13 -> 0.16 | D28: =F4 -> 0.09 | E28: =G4 -> 0.23
B29: β parameter of residual impact, used to estimate new equilibrium STD incidence* | C29: =calcs1!B14 -> 0.7 | D29: =F6 -> 0.46 | E29: =G6 -> 0.86
B30: Annual number of syphilis infections, nationally | C30: =calcs1!B15 -> 55400 | D30: =$C30 -> 55400 | E30: =$C30 -> 55400
B31: Annual number of gonorrhea infections, nationally | C31: =calcs1!B16 -> 820000 | D31: =$C31 -> 820000 | E31: 820000
B32: Annual number of chlamydia infections, nationally | C32: =calcs1!B17 -> 2860000 | D32: 2860000 | E32: 2860000
B33: Average lifetime cost per syphilis infection | C33: =calcs1!B18 -> 770 | D33: =F7 -> 385 | E33: =G7 -> 1155
B34: Average lifetime cost per gonorrhea infection | C34: =calcs1!B19 -> 230 | D34: =F8 -> 115 | E34: 345
B35: Average lifetime cost per chlamydia infection | C35: =calcs1!B20 -> 210 | D35: 105 | E35: 315
B36: Average lifetime cost per HIV infection (both sexes) | C36: =calcs1!B21 -> 351000 | D36: 269000 | E36: 427000
B37: Probability of STD-attributable HIV infection, per syphilis infection | C37: =calcs1!B22 -> 0.0105 | D37: =F11 -> 0.001 | E37: =G11 -> 0.02
B38: Probability of STD-attributable HIV infection, per gonorrhea infection | C38: =calcs1!B23 -> 0.0005 | D38: =F12 -> 5e-05 | E38: 0.001
B39: Probability of STD-attributable HIV infection, per chlamydia infection | C39: =calcs1!B24 -> 0.0005 | D39: 5e-05 | E39: 0.001
B40: Reported number of syphilis cases, nationally | C40: =calcs1!B25 -> 48045 | D40: =$C40 -> 48045 | E40: =$C40 -> 48045
B41: Reported number of gonorrhea cases, nationally | C41: =calcs1!B26 -> 395216 | D41: =$C41 -> 395216 | E41: 395216
B42: Reported number of chlamydia cases, nationally | C42: =calcs1!B27 -> 1526658 | D42: 1526658 | E42: 1526658
B43: Discount rate | C43: =calcs1!B28 -> 0.03 | D43: 0.03 | E43: 0.03
B44: per cap change | C44: =calcs1!B29 -> 0 | D44: =IF(D46=0,0,D46/D17) -> 0 | E44: =IF(E46=0,0,E46/E17) -> 0
B45: per cap change, limited to $2 per capita | C45: =calcs1!B30 -> 0 | D45: =IF(D44<-2,-2,IF(D44>2,2,D44)) -> 0 | E45: =IF(E44<-2,-2,IF(E44>2,2,E44)) -> 0
B46: change in funding | C46: =calcs1!B31 -> 0 | D46: =$C46 -> 0 | E46: =$C46 -> 0
B48: per capita funding change x coefficient | C48: =calcs1!B33 -> 0 | D48: =-D4*D45 -> 0 | E48: =-E4*E45 -> 0
B49: Annual number of syphilis infections, program | C49: =calcs1!B34 -> 0 | D49: =$C49 -> 0 | E49: =$C49 -> 0
B50: Annual number of gonorrhea infections, program | C50: =calcs1!B35 -> 0 | D50: =$C50 -> 0 | E50: 0
B51: Annual number of chlamydia infections, program | C51: =calcs1!B36 -> 0 | D51: 0 | E51: 0
B54: Amount of budget decrease | C54: =calcs1!B39 -> 0 | D54: =$C54 -> 0 | E54: =$C54 -> 0
B55: Amount of budget increase | C55: =calcs1!B40 -> 0 | D55: =$C55 -> 0 | E55: =$C55 -> 0
B59: Number of Disease Intervention Specialists (DIS) employed | C59: =calcs1!D44 -> 0
B60: Annual cost per DIS (salary plus fringe benefits)* | C60: =calcs1!D45 -> 73600
B61: Annual number of STD cases interviewed per DIS | C61: =calcs1!D46 -> 400
B62: Percentage of chlamydia cases interviewed | C62: =calcs1!D47 -> 0.12
B63: Percentage of gonorrhea cases interviewed | C63: =calcs1!D48 -> 0.17
B64: Percentage of syphilis cases interviewed (Primary, secondary, and early latent) | C64: =calcs1!D49 -> 0.89
B67: Reported number of chlamydia cases | C67: =calcs1!B52 -> 0
B68: Reported number of gonorrhea cases | C68: =calcs1!B53 -> 0
B69: Reported number of syphilis cases (Primary, secondary, and early latent) | C69: =calcs1!B54 -> 0
B71: interviewed CT cases | C71: =calcs1!B56 -> 0
B72: interviewed GC cases | C72: =calcs1!B57 -> 0
B73: interviewed PS/EL cases | C73: =calcs1!B58 -> 0
B75: interviewed cases | C75: =calcs1!B60 -> 0
B76: interviews per DIS | C76: =calcs1!B61 -> 400
B78: number of DIS (calculated) | C78: =calcs1!B63 -> 0

Sheet bounds (hidden)
B4: Percent change in STDs per $1 change in funding per capita (Β1 parameter) | C4: 0.16 | D4: 0.09 | E4: 0.23 | F4: =C4*(D4/C4) -> 0.09 | G4: =C4*(E4/C4) -> 0.23
B5: Percent change in STDs per 10 percent change in Disease Intervention Specialist (DIS) activities | C5: 0.02 | D5: 0.005 | E5: 0.05 | F5: =C5*(D5/C5) -> 0.005 | G5: =C5*(E5/C5) -> 0.05
B6: Β0 parameter used to phase in the estimated changes in STD incidence (see text) | C6: 0.7 | D6: 0.46 | E6: 0.86 | F6: =MIN(C6,D6) -> 0.46 | G6: =MAX(C6,E6) -> 0.86
B7: Average lifetime cost per syphilis infection | C7: 770 | D7: 385 | E7: 1155 | F7: =MIN(C7,D7) -> 385 | G7: =MAX(C7,E7) -> 1155
B8: Average lifetime cost per gonorrhea infection | C8: 230 | D8: 115 | E8: 345 | F8: 115 | G8: 345 | L8: DIS salary | M8: =calcs1!D45 -> 73600
B9: Average lifetime cost per chlamydia infection | C9: 210 | D9: 105 | E9: 315 | F9: 105 | G9: 315 | L9: Interviews per DIS | M9: =calcs1!D46 -> 400 | O9: reported cases | P9: =C47+C48+C49 -> 0
B10: Average lifetime cost per HIV infection (both sexes) | C10: 351000 | D10: 269000 | E10: 427000 | F10: 269000 | G10: 427000 | L10: pct of Syphilis cases interviewed | M10: =calcs1!B49 -> 0.89 | O10: interviewed cases | P10: =M17 -> 0
B11: Probability of STD-attributable HIV infection, per syphilis infection | C11: 0.0105 | D11: 0.001 | E11: 0.02 | F11: 0.001 | G11: 0.02 | L11: pct of GC cases interviewed | M11: =calcs1!B48 -> 0.17 | O11: non-interviewed | P11: =P9-P10 -> 0
B12: Probability of STD-attributable HIV infection, per gonorrhea infection | C12: 0.0005 | D12: 5e-05 | E12: 0.001 | F12: 5e-05 | G12: 0.001 | L12: pct of CT cases interviewed | M12: =calcs1!B47 -> 0.12 | O12: max increase DIS | P12: =P11/M9 -> 0
B13: Probability of STD-attributable HIV infection, per chlamydia infection | C13: 0.0005 | D13: 5e-05 | E13: 0.001 | F13: 5e-05 | G13: 0.001 | O13: max pct increase in DIS | P13: =P12/M19 -> 
L14: Syphilis cases interviewed | M14: =C47*M10 -> 0 | O14: max pct increase interviews | P14: =P11/P10 -> 
L15: GC cases interviewed | M15: =C48*M11 -> 0
B16: change in funding | C16: =Page3!C13-Page3!C10 -> 0 | L16: CT cases interviewed | M16: 0
B17: population | C17: =Page2!C13 -> 0 | L17: total interviewed | M17: =M14+M15+M16 -> 0 | N17: =M17/400 -> 0
B18: change in funding per capita | C18: =IF(C16=0,0,C16/C17) -> 0
B19: change in funding per capita, capped at -$2 or $2 | C19: =IF(C18>2,2,IF(C18<-2,-2,C18)) -> 0 | L19: Number of DIS | M19: =calcs1!D44 -> 0 | O19: change in interviews | P19: =M20*M9 -> 0
B20: funding impact coefficient | C20: =C4 -> 0.16 | D20: =F4 -> 0.09 | E20: =G4 -> 0.23 | L20: change in DIS | M20: =C16/M8 -> 0 | O20: pct change in interviews | P20: =P19/M17 -> 
B21: percent change in STIs | C21: =-C20*$C19 -> 0 | D21: =-D20*$C19 -> 0 | E21: =-E20*$C19 -> 0 | L21: pct change in DIS | M21: =IFERROR(MIN((M20/M19),P14),0) -> 0
L22: applied pct change in DIS | M22: =IF(M21<-1,-1,IF(M21>1,1,M21)) -> 0 | O22: Percent change in STDs per 10 percent change in Disease Intervention Specialist (DIS) activities
B23: 1 | C23: =POWER($C$6,$B23-1) -> 1 | D23: =POWER($F$6,$B23-1) -> 1 | E23: =POWER($G$6,$B23-1) -> 1 | G23: =C23 -> 1 | H23: =D23 -> 1 | I23: 1 | O23: base | P23: low | Q23: high
B24: 2 | C24: =POWER($C$6,$B24-1) -> 0.7 | D24: =POWER($F$6,$B24-1) -> 0.46 | E24: =POWER($G$6,$B24-1) -> 0.86 | G24: =G23+C24 -> 1.7 | H24: =H23+D24 -> 1.46 | I24: 1.86 | O24: =-C5 -> -0.02 | P24: =-F5 -> -0.005 | Q24: =-G5 -> -0.05
B25: 3 | C25: 0.49 | D25: 0.2116 | E25: 0.7396 | G25: =G24+C25 -> 2.19 | H25: =H24+D25 -> 1.6716 | I25: =I24+E25 -> 2.5996 | O25: =O24*($M$22/0.1) -> 0 | P25: =P24*($M$22/0.1) -> 0 | Q25: 0
B26: 4 | C26: 0.343 | D26: 0.097336 | E26: 0.636056 | G26: 2.533 | H26: 1.768936 | I26: 3.235656
B27: 5 | C27: 0.2401 | D27: 0.04477456 | E27: 0.54700816 | G27: 2.7731 | H27: 1.81371056 | I27: 3.78266416
B28: 6 | C28: 0.16807 | D28: 0.0205962976 | E28: 0.4704270176 | G28: 2.94117 | H28: 1.834306858 | I28: 4.253091178
B29: 7 | C29: 0.117649 | D29: 0.009474296896 | E29: 0.4045672351 | G29: 3.058819 | H29: 1.843781154 | I29: 4.657658413
B30: 8 | C30: 0.0823543 | D30: 0.004358176572 | E30: 0.3479278222 | G30: 3.1411733 | H30: 1.848139331 | I30: 5.005586235
B31: 9 | C31: 0.05764801 | D31: 0.002004761223 | E31: 0.2992179271 | G31: 3.19882131 | H31: 1.850144092 | I31: 5.304804162
B32: 10 | C32: 0.040353607 | D32: 0.0009221901627 | E32: 0.2573274173 | G32: 3.239174917 | H32: 1.851066282 | I32: 5.562131579
B34: Discount rate | C34: =calcs1!B28 -> 0.03 | D34: =1/(1+C34) -> 0.9708737864 | N34: base | O34: low | P34: high | Q34: disc
B35: Phased in impact | C35: base | D35: low | E35: high | F35: disc | M35: 1 | N35: =(N$44*(G23/G$32)) -> 0 | O35: =(O$44*(H23/H$32)) -> 0 | P35: =(P$44*(I23/I$32)) -> 0 | Q35: =F36 -> 1
B36: 1 | C36: =MAX(C$21*G23,-1) -> 0 | D36: =MAX(D$21*H23,-1) -> 0 | E36: =MAX(E$21*I23,-1) -> 0 | F36: =POWER($D$34,B36-1) -> 1 | M36: 2 | N36: 0 | O36: 0 | P36: 0 | Q36: =F37 -> 0.9708737864
B37: 2 | C37: =MAX(C$21*G24,-1) -> 0 | D37: =MAX(D$21*H24,-1) -> 0 | E37: =MAX(E$21*I24,-1) -> 0 | F37: =POWER($D$34,B37-1) -> 0.9708737864 | M37: 3 | N37: 0 | O37: 0 | P37: 0 | Q37: 0.9425959091
B38: 3 | C38: 0 | D38: 0 | E38: 0 | F38: 0.9425959091 | M38: 4 | N38: 0 | O38: 0 | P38: 0 | Q38: 0.9151416594
B39: 4 | C39: 0 | D39: 0 | E39: 0 | F39: 0.9151416594 | M39: 5 | N39: 0 | O39: 0 | P39: 0 | Q39: 0.8884870479
B40: 5 | C40: 0 | D40: 0 | E40: 0 | F40: 0.8884870479 | M40: 6 | N40: 0 | O40: 0 | P40: 0 | Q40: 0.8626087844
B41: 6 | C41: 0 | D41: 0 | E41: 0 | F41: 0.8626087844 | M41: 7 | N41: 0 | O41: 0 | P41: 0 | Q41: 0.8374842567
B42: 7 | C42: 0 | D42: 0 | E42: 0 | F42: 0.8374842567 | M42: 8 | N42: 0 | O42: 0 | P42: 0 | Q42: 0.8130915113
B43: 8 | C43: 0 | D43: 0 | E43: 0 | F43: 0.8130915113 | M43: 9 | N43: =(N$44*(G31/G$32)) -> 0 | O43: =(O$44*(H31/H$32)) -> 0 | P43: 0 | Q43: 0.7894092343
B44: 9 | C44: 0 | D44: 0 | E44: 0 | F44: 0.7894092343 | G44: Cost | H44: base | I44: low | J44: high | M44: 10 | N44: =O25 -> 0 | O44: =P25 -> 0 | P44: 0 | Q44: 0.7664167323
B45: 10 | C45: 0 | D45: 0 | E45: 0 | F45: 0.7664167323 | G45: PS | H45: =C7 -> 770 | I45: =F7 -> 385 | J45: =G7 -> 1155
C46: program | D46: national | G46: GC | H46: =C8 -> 230 | I46: =F8 -> 115 | J46: 345
B47: reported syphilis cases | C47: =Page2!C17 -> 0 | D47: =calcs1!B25 -> 48045 | G47: CT | H47: 210 | I47: =F9 -> 105 | J47: 315
B48: reported gc cases | C48: =Page2!C16 -> 0 | D48: =calcs1!B26 -> 395216 | G48: HIV | H48: 351000 | I48: =F10 -> 269000 | J48: 427000
B49: reported ct cases | C49: =Page2!C15 -> 0 | D49: =calcs1!B27 -> 1526658
F50: HIV attrib | G50: base | H50: low | I50: high
B51: estimated syphilis incidence | C51: =(C47/D47)*D51 -> 0 | D51: =calcs1!B15 -> 55400 | F51: PS | G51: =C11 -> 0.0105 | H51: =F11 -> 0.001 | I51: =G11 -> 0.02
B52: estimated gc incidence | C52: =(C48/D48)*D52 -> 0 | D52: =calcs1!B16 -> 820000 | F52: GC | G52: =C12 -> 0.0005 | H52: =F12 -> 5e-05 | I52: 0.001
B53: estimated ct incidence | C53: 0 | D53: =calcs1!B17 -> 2860000 | F53: CT | G53: 0.0005 | H53: =F13 -> 5e-05 | I53: 0.001
B55: Base case results: historic formula approach | D55: =H45 -> 770 | E55: =H46 -> 230 | F55: =H47 -> 210 | G55: =H48 -> 351000 | P55: Base case results: DIS approach | R55: =D55 -> 770 | S55: =E55 -> 230 | T55: 210 | U55: 351000
D56: =G51 -> 0.0105 | E56: =G52 -> 0.0005 | F56: =G53 -> 0.0005 | K56: DISCOUNTED | R56: =D56 -> 0.0105 | S56: 0.0005 | T56: 0.0005 | Y56: DISCOUNTED
D57: syphilis | E57: gonorrhea | F57: chlamydia | G57: HIV | H57: STD costs | I57: HIV | J57: totcosts | K57: STD costs | L57: HIV costs | M57: tot costs | R57: syphilis | S57: gonorrhea | T57: chlamydia | U57: HIV | V57: STD costs | W57: HIV | X57: totcosts | Y57: STD costs | Z57: HIV costs | AA57: tot costs
B58: =ABS(C36) -> 0 | C58: year 1 | D58: =$C$51*$B58 -> 0 | E58: =$C$52*$B58 -> 0 | F58: =$C$53*$B58 -> 0 | G58: =(D58*D$56) + (E58*E$56)+(F58*F$56) -> 0 | H58: =(D58*D$55)+(E58*E$55)+(F58*F$55) -> 0 | I58: =G58*G$55 -> 0 | J58: =H58+I58 -> 0 | K58: =H58*$F36 -> 0 | L58: =I58*$F36 -> 0 | M58: 0 | P58: =ABS(N35) -> 0 | Q58: year 1 | R58: =$C$51*$P58 -> 0 | S58: =$C$52*$P58 -> 0 | T58: =$C$53*$P58 -> 0 | U58: =(R58*R$56) + (S58*S$56)+(T58*T$56) -> 0 | V58: =(R58*R$55)+(S58*S$55)+(T58*T$55) -> 0 | W58: =U58*U$55 -> 0 | X58: =V58+W58 -> 0 | Y58: =V58*$F36 -> 0 | Z58: =W58*$F36 -> 0 | AA58: =X58*$F36 -> 0
B59: =ABS(C37) -> 0 | C59: year 2 | D59: =$C$51*$B59 -> 0 | E59: =$C$52*$B59 -> 0 | F59: =$C$53*$B59 -> 0 | G59: =(D59*D$56) + (E59*E$56)+(F59*F$56) -> 0 | H59: =(D59*D$55)+(E59*E$55)+(F59*F$55) -> 0 | I59: =G59*G$55 -> 0 | J59: =H59+I59 -> 0 | K59: =H59*$F37 -> 0 | L59: =I59*$F37 -> 0 | M59: =J59*$F37 -> 0 | P59: =ABS(N36) -> 0 | Q59: year 2 | R59: =$C$51*$P59 -> 0 | S59: =$C$52*$P59 -> 0 | T59: =$C$53*$P59 -> 0 | U59: =(R59*R$56) + (S59*S$56)+(T59*T$56) -> 0 | V59: =(R59*R$55)+(S59*S$55)+(T59*T$55) -> 0 | W59: =U59*U$55 -> 0 | X59: =V59+W59 -> 0 | Y59: =V59*$F37 -> 0 | Z59: 0 | AA59: 0
B60: 0 | C60: year 3 | D60: 0 | E60: 0 | F60: 0 | G60: 0 | H60: 0 | I60: 0 | J60: 0 | K60: 0 | L60: 0 | M60: 0 | P60: 0 | Q60: year 3 | R60: 0 | S60: 0 | T60: 0 | U60: 0 | V60: 0 | W60: 0 | X60: 0 | Y60: 0 | Z60: 0 | AA60: 0
B61: 0 | C61: year 4 | D61: 0 | E61: 0 | F61: 0 | G61: 0 | H61: 0 | I61: 0 | J61: 0 | K61: 0 | L61: 0 | M61: 0 | P61: 0 | Q61: year 4 | R61: 0 | S61: 0 | T61: 0 | U61: 0 | V61: 0 | W61: 0 | X61: 0 | Y61: 0 | Z61: 0 | AA61: 0
B62: 0 | C62: year 5 | D62: 0 | E62: 0 | F62: 0 | G62: 0 | H62: 0 | I62: 0 | J62: 0 | K62: 0 | L62: 0 | M62: 0 | P62: 0 | Q62: year 5 | R62: 0 | S62: 0 | T62: 0 | U62: 0 | V62: 0 | W62: 0 | X62: 0 | Y62: 0 | Z62: 0 | AA62: 0
B63: 0 | C63: year 6 | D63: 0 | E63: 0 | F63: 0 | G63: 0 | H63: 0 | I63: 0 | J63: 0 | K63: 0 | L63: 0 | M63: 0 | P63: 0 | Q63: year 6 | R63: 0 | S63: 0 | T63: 0 | U63: 0 | V63: 0 | W63: 0 | X63: 0 | Y63: 0 | Z63: 0 | AA63: 0
B64: 0 | C64: year 7 | D64: 0 | E64: 0 | F64: 0 | G64: 0 | H64: 0 | I64: 0 | J64: 0 | K64: 0 | L64: 0 | M64: 0 | P64: 0 | Q64: year 7 | R64: 0 | S64: 0 | T64: 0 | U64: 0 | V64: 0 | W64: 0 | X64: 0 | Y64: 0 | Z64: 0 | AA64: 0
B65: 0 | C65: year 8 | D65: 0 | E65: 0 | F65: 0 | G65: 0 | H65: 0 | I65: 0 | J65: 0 | K65: 0 | L65: 0 | M65: 0 | P65: 0 | Q65: year 8 | R65: 0 | S65: 0 | T65: 0 | U65: 0 | V65: 0 | W65: 0 | X65: 0 | Y65: 0 | Z65: 0 | AA65: 0
B66: 0 | C66: year 9 | D66: 0 | E66: 0 | F66: 0 | G66: 0 | H66: 0 | I66: 0 | J66: 0 | K66: 0 | L66: 0 | M66: 0 | P66: 0 | Q66: year 9 | R66: 0 | S66: 0 | T66: 0 | U66: 0 | V66: 0 | W66: 0 | X66: 0 | Y66: 0 | Z66: 0 | AA66: 0
B67: 0 | C67: year 10 | D67: 0 | E67: 0 | F67: 0 | G67: 0 | H67: 0 | I67: 0 | J67: 0 | K67: =H67*$F45 -> 0 | L67: =I67*$F45 -> 0 | M67: =J67*$F45 -> 0 | P67: 0 | Q67: year 10 | R67: 0 | S67: 0 | T67: 0 | U67: 0 | V67: 0 | W67: 0 | X67: 0 | Y67: 0 | Z67: 0 | AA67: 0
C68: TOTAL | D68: =SUM(D58:D67) -> 0 | E68: =SUM(E58:E67) -> 0 | F68: 0 | G68: 0 | H68: 0 | I68: 0 | J68: 0 | K68: =SUM(K58:K67) -> 0 | L68: =SUM(L58:L67) -> 0 | M68: 0 | Q68: TOTAL | R68: =SUM(R58:R67) -> 0 | S68: =SUM(S58:S67) -> 0 | T68: =SUM(T58:T67) -> 0 | U68: =SUM(U58:U67) -> 0 | V68: =SUM(V58:V67) -> 0 | W68: =SUM(W58:W67) -> 0 | X68: =SUM(X58:X67) -> 0 | Y68: =SUM(Y58:Y67) -> 0 | Z68: =SUM(Z58:Z67) -> 0 | AA68: =SUM(AA58:AA67) -> 0
B71: Lower bound results: historic formula approach | D71: =I45 -> 385 | E71: =I46 -> 115 | F71: =I47 -> 105 | G71: =I48 -> 269000 | P71: Lower bound results: DIS approach | R71: =D71 -> 385 | S71: =E71 -> 115 | T71: =F71 -> 105 | U71: =G71 -> 269000
D72: =H51 -> 0.001 | E72: =H52 -> 5e-05 | F72: =H53 -> 5e-05 | K72: DISCOUNTED | R72: =D72 -> 0.001 | S72: 5e-05 | T72: 5e-05 | Y72: DISCOUNTED
D73: syphilis | E73: gonorrhea | F73: chlamydia | G73: HIV | H73: STD costs | I73: HIV | J73: totcosts | K73: STD costs | L73: HIV costs | M73: tot costs | R73: syphilis | S73: gonorrhea | T73: chlamydia | U73: HIV | V73: STD costs | W73: HIV | X73: totcosts | Y73: STD costs | Z73: HIV costs | AA73: tot costs
B74: =ABS(D36) -> 0 | C74: year 1 | D74: =$C$51*$B74 -> 0 | E74: =$C$52*$B74 -> 0 | F74: =$C$53*$B74 -> 0 | G74: =(D74*D$72) + (E74*E$72)+(F74*F$72) -> 0 | H74: =(D74*D$71)+(E74*E$71)+(F74*F$71) -> 0 | I74: =G74*G$71 -> 0 | J74: =H74+I74 -> 0 | K74: =H74*$F36 -> 0 | L74: =I74*$F36 -> 0 | M74: 0 | P74: =ABS(O35) -> 0 | Q74: year 1 | R74: =$C$51*$P74 -> 0 | S74: =$C$52*$P74 -> 0 | T74: =$C$53*$P74 -> 0 | U74: =(R74*R$72) + (S74*S$72)+(T74*T$72) -> 0 | V74: =(R74*R$71)+(S74*S$71)+(T74*T$71) -> 0 | W74: =U74*U$71 -> 0 | X74: =V74+W74 -> 0 | Y74: =V74*$F36 -> 0 | Z74: =W74*$F36 -> 0 | AA74: =X74*$F36 -> 0
B75: =ABS(D37) -> 0 | C75: year 2 | D75: =$C$51*$B75 -> 0 | E75: =$C$52*$B75 -> 0 | F75: =$C$53*$B75 -> 0 | G75: =(D75*D$72) + (E75*E$72)+(F75*F$72) -> 0 | H75: =(D75*D$55)+(E75*E$55)+(F75*F$55) -> 0 | I75: =G75*G$55 -> 0 | J75: =H75+I75 -> 0 | K75: =H75*$F37 -> 0 | L75: =I75*$F37 -> 0 | M75: =J75*$F37 -> 0 | P75: =ABS(O36) -> 0 | Q75: year 2 | R75: =$C$51*$P75 -> 0 | S75: =$C$52*$P75 -> 0 | T75: =$C$53*$P75 -> 0 | U75: =(R75*R$72) + (S75*S$72)+(T75*T$72) -> 0 | V75: =(R75*R$55)+(S75*S$55)+(T75*T$55) -> 0 | W75: =U75*U$55 -> 0 | X75: =V75+W75 -> 0 | Y75: =V75*$F37 -> 0 | Z75: 0 | AA75: 0
B76: 0 | C76: year 3 | D76: 0 | E76: 0 | F76: 0 | G76: 0 | H76: 0 | I76: 0 | J76: 0 | K76: 0 | L76: 0 | M76: 0 | P76: 0 | Q76: year 3 | R76: 0 | S76: 0 | T76: 0 | U76: 0 | V76: 0 | W76: 0 | X76: 0 | Y76: 0 | Z76: 0 | AA76: 0
B77: 0 | C77: year 4 | D77: 0 | E77: 0 | F77: 0 | G77: 0 | H77: 0 | I77: 0 | J77: 0 | K77: 0 | L77: 0 | M77: 0 | P77: 0 | Q77: year 4 | R77: 0 | S77: 0 | T77: 0 | U77: 0 | V77: 0 | W77: 0 | X77: 0 | Y77: 0 | Z77: 0 | AA77: 0
B78: 0 | C78: year 5 | D78: 0 | E78: 0 | F78: 0 | G78: 0 | H78: 0 | I78: 0 | J78: 0 | K78: 0 | L78: 0 | M78: 0 | P78: 0 | Q78: year 5 | R78: 0 | S78: 0 | T78: 0 | U78: 0 | V78: 0 | W78: 0 | X78: 0 | Y78: 0 | Z78: 0 | AA78: 0
B79: 0 | C79: year 6 | D79: 0 | E79: 0 | F79: 0 | G79: 0 | H79: 0 | I79: 0 | J79: 0 | K79: 0 | L79: 0 | M79: 0 | P79: 0 | Q79: year 6 | R79: 0 | S79: 0 | T79: 0 | U79: 0 | V79: 0 | W79: 0 | X79: 0 | Y79: 0 | Z79: 0 | AA79: 0
B80: 0 | C80: year 7 | D80: 0 | E80: 0 | F80: 0 | G80: 0 | H80: 0 | I80: 0 | J80: 0 | K80: 0 | L80: 0 | M80: 0 | P80: 0 | Q80: year 7 | R80: 0 | S80: 0 | T80: 0 | U80: 0 | V80: 0 | W80: 0 | X80: 0 | Y80: 0 | Z80: 0 | AA80: 0
B81: 0 | C81: year 8 | D81: 0 | E81: 0 | F81: 0 | G81: 0 | H81: 0 | I81: 0 | J81: 0 | K81: 0 | L81: 0 | M81: 0 | P81: 0 | Q81: year 8 | R81: 0 | S81: 0 | T81: 0 | U81: 0 | V81: 0 | W81: 0 | X81: 0 | Y81: 0 | Z81: 0 | AA81: 0
B82: 0 | C82: year 9 | D82: 0 | E82: 0 | F82: 0 | G82: 0 | H82: 0 | I82: 0 | J82: 0 | K82: 0 | L82: 0 | M82: 0 | P82: 0 | Q82: year 9 | R82: 0 | S82: 0 | T82: 0 | U82: 0 | V82: 0 | W82: 0 | X82: 0 | Y82: 0 | Z82: 0 | AA82: 0
B83: 0 | C83: year 10 | D83: 0 | E83: 0 | F83: 0 | G83: 0 | H83: 0 | I83: 0 | J83: 0 | K83: 0 | L83: 0 | M83: 0 | P83: 0 | Q83: year 10 | R83: 0 | S83: 0 | T83: 0 | U83: 0 | V83: 0 | W83: 0 | X83: 0 | Y83: 0 | Z83: 0 | AA83: 0
C84: TOTAL | D84: =SUM(D74:D83) -> 0 | E84: =SUM(E74:E83) -> 0 | F84: =SUM(F74:F83) -> 0 | G84: =SUM(G74:G83) -> 0 | H84: =SUM(H74:H83) -> 0 | I84: =SUM(I74:I83) -> 0 | J84: =SUM(J74:J83) -> 0 | K84: =SUM(K74:K83) -> 0 | L84: =SUM(L74:L83) -> 0 | M84: =SUM(M74:M83) -> 0 | Q84: TOTAL | R84: =SUM(R74:R83) -> 0 | S84: =SUM(S74:S83) -> 0 | T84: =SUM(T74:T83) -> 0 | U84: =SUM(U74:U83) -> 0 | V84: =SUM(V74:V83) -> 0 | W84: =SUM(W74:W83) -> 0 | X84: =SUM(X74:X83) -> 0 | Y84: =SUM(Y74:Y83) -> 0 | Z84: =SUM(Z74:Z83) -> 0 | AA84: =SUM(AA74:AA83) -> 0
B88: Upper bound results: historic formula approach | D88: =J45 -> 1155 | E88: =J46 -> 345 | F88: =J47 -> 315 | G88: =J48 -> 427000 | P88: Upper bound results: DIS approach | R88: =D88 -> 1155 | S88: =E88 -> 345 | T88: =F88 -> 315 | U88: =G88 -> 427000
D89: =I51 -> 0.02 | E89: =I52 -> 0.001 | F89: =I53 -> 0.001 | K89: DISCOUNTED | R89: =D89 -> 0.02 | S89: 0.001 | T89: 0.001 | Y89: DISCOUNTED
D90: syphilis | E90: gonorrhea | F90: chlamydia | G90: HIV | H90: STD costs | I90: HIV | J90: totcosts | K90: STD costs | L90: HIV costs | M90: tot costs | R90: syphilis | S90: gonorrhea | T90: chlamydia | U90: HIV | V90: STD costs | W90: HIV | X90: totcosts | Y90: STD costs | Z90: HIV costs | AA90: tot costs
B91: =ABS(E36) -> 0 | C91: year 1 | D91: =$C$51*$B91 -> 0 | E91: =$C$52*$B91 -> 0 | F91: =$C$53*$B91 -> 0 | G91: =(D91*D$89) + (E91*E$89)+(F91*F$89) -> 0 | H91: =(D91*D$71)+(E91*E$71)+(F91*F$71) -> 0 | I91: =G91*G$71 -> 0 | J91: =H91+I91 -> 0 | K91: =H91*$F36 -> 0 | L91: =I91*$F36 -> 0 | M91: 0 | P91: =ABS(P35) -> 0 | Q91: year 1 | R91: =$C$51*$P91 -> 0 | S91: =$C$52*$P91 -> 0 | T91: =$C$53*$P91 -> 0 | U91: =(R91*R$89) + (S91*S$89)+(T91*T$89) -> 0 | V91: =(R91*R$71)+(S91*S$71)+(T91*T$71) -> 0 | W91: =U91*U$71 -> 0 | X91: =V91+W91 -> 0 | Y91: =V91*$F36 -> 0 | Z91: =W91*$F36 -> 0 | AA91: =X91*$F36 -> 0
B92: =ABS(E37) -> 0 | C92: year 2 | D92: =$C$51*$B92 -> 0 | E92: =$C$52*$B92 -> 0 | F92: =$C$53*$B92 -> 0 | G92: =(D92*D$89) + (E92*E$89)+(F92*F$89) -> 0 | H92: =(D92*D$55)+(E92*E$55)+(F92*F$55) -> 0 | I92: =G92*G$55 -> 0 | J92: =H92+I92 -> 0 | K92: =H92*$F37 -> 0 | L92: 0 | M92: 0 | P92: =ABS(P36) -> 0 | Q92: year 2 | R92: =$C$51*$P92 -> 0 | S92: =$C$52*$P92 -> 0 | T92: =$C$53*$P92 -> 0 | U92: =(R92*R$89) + (S92*S$89)+(T92*T$89) -> 0 | V92: =(R92*R$55)+(S92*S$55)+(T92*T$55) -> 0 | W92: =U92*U$55 -> 0 | X92: =V92+W92 -> 0 | Y92: =V92*$F37 -> 0 | Z92: 0 | AA92: 0
B93: 0 | C93: year 3 | D93: 0 | E93: 0 | F93: 0 | G93: 0 | H93: 0 | I93: 0 | J93: 0 | K93: 0 | L93: 0 | M93: 0 | P93: 0 | Q93: year 3 | R93: 0 | S93: 0 | T93: 0 | U93: 0 | V93: 0 | W93: 0 | X93: 0 | Y93: 0 | Z93: 0 | AA93: 0
B94: 0 | C94: year 4 | D94: 0 | E94: 0 | F94: 0 | G94: 0 | H94: 0 | I94: 0 | J94: 0 | K94: 0 | L94: 0 | M94: 0 | P94: 0 | Q94: year 4 | R94: 0 | S94: 0 | T94: 0 | U94: 0 | V94: 0 | W94: 0 | X94: 0 | Y94: 0 | Z94: 0 | AA94: 0
B95: 0 | C95: year 5 | D95: 0 | E95: 0 | F95: 0 | G95: 0 | H95: 0 | I95: 0 | J95: 0 | K95: 0 | L95: 0 | M95: 0 | P95: 0 | Q95: year 5 | R95: 0 | S95: 0 | T95: 0 | U95: 0 | V95: 0 | W95: 0 | X95: 0 | Y95: 0 | Z95: 0 | AA95: 0
B96: 0 | C96: year 6 | D96: 0 | E96: 0 | F96: 0 | G96: 0 | H96: 0 | I96: 0 | J96: 0 | K96: 0 | L96: 0 | M96: 0 | P96: 0 | Q96: year 6 | R96: 0 | S96: 0 | T96: 0 | U96: 0 | V96: 0 | W96: 0 | X96: 0 | Y96: 0 | Z96: 0 | AA96: 0
B97: 0 | C97: year 7 | D97: 0 | E97: 0 | F97: 0 | G97: 0 | H97: 0 | I97: 0 | J97: 0 | K97: 0 | L97: 0 | M97: 0 | P97: 0 | Q97: year 7 | R97: 0 | S97: 0 | T97: 0 | U97: 0 | V97: 0 | W97: 0 | X97: 0 | Y97: 0 | Z97: 0 | AA97: 0
B98: 0 | C98: year 8 | D98: 0 | E98: 0 | F98: 0 | G98: 0 | H98: 0 | I98: 0 | J98: 0 | K98: 0 | L98: 0 | M98: 0 | P98: 0 | Q98: year 8 | R98: 0 | S98: 0 | T98: 0 | U98: 0 | V98: 0 | W98: 0 | X98: 0 | Y98: 0 | Z98: 0 | AA98: 0
B99: 0 | C99: year 9 | D99: 0 | E99: 0 | F99: 0 | G99: 0 | H99: 0 | I99: 0 | J99: 0 | K99: 0 | L99: 0 | M99: 0 | P99: 0 | Q99: year 9 | R99: 0 | S99: 0 | T99: 0 | U99: 0 | V99: 0 | W99: 0 | X99: 0 | Y99: 0 | Z99: 0 | AA99: 0
B100: 0 | C100: year 10 | D100: 0 | E100: 0 | F100: 0 | G100: 0 | H100: 0 | I100: 0 | J100: 0 | K100: 0 | L100: 0 | M100: 0 | P100: 0 | Q100: year 10 | R100: 0 | S100: 0 | T100: 0 | U100: 0 | V100: 0 | W100: 0 | X100: 0 | Y100: 0 | Z100: 0 | AA100: 0
C101: TOTAL | D101: =SUM(D91:D100) -> 0 | E101: =SUM(E91:E100) -> 0 | F101: =SUM(F91:F100) -> 0 | G101: =SUM(G91:G100) -> 0 | H101: =SUM(H91:H100) -> 0 | I101: =SUM(I91:I100) -> 0 | J101: =SUM(J91:J100) -> 0 | K101: =SUM(K91:K100) -> 0 | L101: =SUM(L91:L100) -> 0 | M101: =SUM(M91:M100) -> 0 | Q101: TOTAL | R101: =SUM(R91:R100) -> 0 | S101: =SUM(S91:S100) -> 0 | T101: =SUM(T91:T100) -> 0 | U101: =SUM(U91:U100) -> 0 | V101: =SUM(V91:V100) -> 0 | W101: =SUM(W91:W100) -> 0 | X101: =SUM(X91:X100) -> 0 | Y101: =SUM(Y91:Y100) -> 0 | Z101: =SUM(Z91:Z100) -> 0 | AA101: =SUM(AA91:AA100) -> 0
B106: Base case results: average
K107: DISCOUNTED
D108: syphilis | E108: gonorrhea | F108: chlamydia | G108: HIV | H108: STD costs | I108: HIV | J108: totcosts | K108: STD costs | L108: HIV costs | M108: tot costs
B109: =AVERAGE(B58,P58) -> 0 | C109: year 1 | D109: =AVERAGE(D58,R58) -> 0 | E109: =AVERAGE(E58,S58) -> 0 | F109: 0 | G109: 0 | H109: 0 | I109: 0 | J109: 0 | K109: 0 | L109: =AVERAGE(L58,Z58) -> 0 | M109: =AVERAGE(M58,AA58) -> 0
B110: =AVERAGE(B59,P59) -> 0 | C110: year 2 | D110: 0 | E110: 0 | F110: 0 | G110: 0 | H110: 0 | I110: 0 | J110: 0 | K110: 0 | L110: 0 | M110: 0
B111: 0 | C111: year 3 | D111: 0 | E111: 0 | F111: 0 | G111: 0 | H111: 0 | I111: 0 | J111: 0 | K111: 0 | L111: 0 | M111: 0
B112: 0 | C112: year 4 | D112: 0 | E112: 0 | F112: 0 | G112: 0 | H112: 0 | I112: 0 | J112: 0 | K112: 0 | L112: 0 | M112: 0
B113: 0 | C113: year 5 | D113: 0 | E113: 0 | F113: 0 | G113: 0 | H113: 0 | I113: 0 | J113: 0 | K113: 0 | L113: 0 | M113: 0
B114: 0 | C114: year 6 | D114: 0 | E114: 0 | F114: 0 | G114: 0 | H114: 0 | I114: 0 | J114: 0 | K114: 0 | L114: 0 | M114: 0
B115: 0 | C115: year 7 | D115: 0 | E115: 0 | F115: 0 | G115: 0 | H115: 0 | I115: 0 | J115: 0 | K115: 0 | L115: 0 | M115: 0
B116: 0 | C116: year 8 | D116: 0 | E116: 0 | F116: 0 | G116: 0 | H116: 0 | I116: 0 | J116: 0 | K116: 0 | L116: 0 | M116: 0
B117: 0 | C117: year 9 | D117: 0 | E117: 0 | F117: 0 | G117: 0 | H117: 0 | I117: 0 | J117: 0 | K117: 0 | L117: 0 | M117: 0
B118: 0 | C118: year 10 | D118: 0 | E118: 0 | F118: 0 | G118: 0 | H118: 0 | I118: 0 | J118: 0 | K118: 0 | L118: 0 | M118: 0
C119: TOTAL | D119: 0 | E119: 0 | F119: 0 | G119: 0 | H119: 0 | I119: 0 | J119: 0 | K119: 0 | L119: 0 | M119: 0
B122: Lower bound results: average | D122: 385 | E122: 115 | F122: 105 | G122: 269000
D123: 0.001 | E123: 5e-05 | F123: 5e-05 | K123: DISCOUNTED
D124: syphilis | E124: gonorrhea | F124: chlamydia | G124: HIV | H124: STD costs | I124: HIV | J124: totcosts | K124: STD costs | L124: HIV costs | M124: tot costs
B125: =AVERAGE(B74,P74) -> 0 | C125: year 1 | D125: =AVERAGE(D74,R74) -> 0 | E125: =AVERAGE(E74,S74) -> 0 | F125: =AVERAGE(F74,T74) -> 0 | G125: =AVERAGE(G74,U74) -> 0 | H125: =AVERAGE(H74,V74) -> 0 | I125: =AVERAGE(I74,W74) -> 0 | J125: =AVERAGE(J74,X74) -> 0 | K125: =AVERAGE(K74,Y74) -> 0 | L125: =AVERAGE(L74,Z74) -> 0 | M125: =AVERAGE(M74,AA74) -> 0
B126: =AVERAGE(B75,P75) -> 0 | C126: year 2 | D126: =AVERAGE(D75,R75) -> 0 | E126: 0 | F126: 0 | G126: 0 | H126: 0 | I126: 0 | J126: 0 | K126: 0 | L126: 0 | M126: 0
B127: 0 | C127: year 3 | D127: 0 | E127: 0 | F127: 0 | G127: 0 | H127: 0 | I127: 0 | J127: 0 | K127: 0 | L127: 0 | M127: 0
B128: 0 | C128: year 4 | D128: 0 | E128: 0 | F128: 0 | G128: 0 | H128: 0 | I128: 0 | J128: 0 | K128: 0 | L128: 0 | M128: 0
B129: 0 | C129: year 5 | D129: 0 | E129: 0 | F129: 0 | G129: 0 | H129: 0 | I129: 0 | J129: 0 | K129: 0 | L129: 0 | M129: 0
B130: 0 | C130: year 6 | D130: 0 | E130: 0 | F130: 0 | G130: 0 | H130: 0 | I130: 0 | J130: 0 | K130: 0 | L130: 0 | M130: 0
B131: 0 | C131: year 7 | D131: 0 | E131: 0 | F131: 0 | G131: 0 | H131: 0 | I131: 0 | J131: 0 | K131: 0 | L131: 0 | M131: 0
B132: 0 | C132: year 8 | D132: 0 | E132: 0 | F132: 0 | G132: 0 | H132: 0 | I132: 0 | J132: 0 | K132: 0 | L132: 0 | M132: 0
B133: 0 | C133: year 9 | D133: 0 | E133: 0 | F133: 0 | G133: 0 | H133: 0 | I133: 0 | J133: 0 | K133: 0 | L133: 0 | M133: 0
B134: 0 | C134: year 10 | D134: 0 | E134: 0 | F134: 0 | G134: 0 | H134: 0 | I134: 0 | J134: 0 | K134: 0 | L134: 0 | M134: 0
C135: TOTAL | D135: 0 | E135: 0 | F135: 0 | G135: 0 | H135: 0 | I135: 0 | J135: 0 | K135: 0 | L135: 0 | M135: 0
B139: Upper bound results: average | D139: 1155 | E139: 345 | F139: 315 | G139: 427000
D140: 0.02 | E140: 0.001 | F140: 0.001 | K140: DISCOUNTED
D141: syphilis | E141: gonorrhea | F141: chlamydia | G141: HIV | H141: STD costs | I141: HIV | J141: totcosts | K141: STD costs | L141: HIV costs | M141: tot costs
B142: =AVERAGE(B91,P91) -> 0 | C142: year 1 | D142: =AVERAGE(D91,R91) -> 0 | E142: =AVERAGE(E91,S91) -> 0 | F142: =AVERAGE(F91,T91) -> 0 | G142: =AVERAGE(G91,U91) -> 0 | H142: =AVERAGE(H91,V91) -> 0 | I142: =AVERAGE(I91,W91) -> 0 | J142: =AVERAGE(J91,X91) -> 0 | K142: =AVERAGE(K91,Y91) -> 0 | L142: =AVERAGE(L91,Z91) -> 0 | M142: =AVERAGE(M91,AA91) -> 0
B143: =AVERAGE(B92,P92) -> 0 | C143: year 2 | D143: =AVERAGE(D92,R92) -> 0 | E143: 0 | F143: 0 | G143: 0 | H143: 0 | I143: 0 | J143: 0 | K143: 0 | L143: 0 | M143: 0
B144: 0 | C144: year 3 | D144: 0 | E144: 0 | F144: 0 | G144: 0 | H144: 0 | I144: 0 | J144: 0 | K144: 0 | L144: 0 | M144: 0
B145: 0 | C145: year 4 | D145: 0 | E145: 0 | F145: 0 | G145: 0 | H145: 0 | I145: 0 | J145: 0 | K145: 0 | L145: 0 | M145: 0
B146: 0 | C146: year 5 | D146: 0 | E146: 0 | F146: 0 | G146: 0 | H146: 0 | I146: 0 | J146: 0 | K146: 0 | L146: 0 | M146: 0
B147: 0 | C147: year 6 | D147: 0 | E147: 0 | F147: 0 | G147: 0 | H147: 0 | I147: 0 | J147: 0 | K147: 0 | L147: 0 | M147: 0
B148: 0 | C148: year 7 | D148: 0 | E148: 0 | F148: 0 | G148: 0 | H148: 0 | I148: 0 | J148: 0 | K148: 0 | L148: 0 | M148: 0
B149: 0 | C149: year 8 | D149: 0 | E149: 0 | F149: 0 | G149: 0 | H149: 0 | I149: 0 | J149: 0 | K149: 0 | L149: 0 | M149: 0
B150: 0 | C150: year 9 | D150: 0 | E150: 0 | F150: 0 | G150: 0 | H150: 0 | I150: 0 | J150: 0 | K150: 0 | L150: 0 | M150: 0
B151: 0 | C151: year 10 | D151: 0 | E151: 0 | F151: 0 | G151: 0 | H151: 0 | I151: 0 | J151: 0 | K151: 0 | L151: 0 | M151: 0
C152: TOTAL | D152: 0 | E152: 0 | F152: 0 | G152: 0 | H152: 0 | I152: 0 | J152: 0 | K152: 0 | L152: 0 | M152: 0
B153: application code | C153: =calcs1!A75 -> 1
B155: Base case results: applied
K156: DISCOUNTED
D157: syphilis | E157: gonorrhea | F157: chlamydia | G157: HIV | H157: STD costs | I157: HIV | J157: totcosts | K157: STD costs | L157: HIV costs | M157: tot costs
B158: =IF($C$153=1,B109,IF($C$153=2,B58,IF($C$153=3,P58,"error"))) -> 0 | C158: year 1 | D158: =IF($C$153=1,D109,IF($C$153=2,D58,IF($C$153=3,R58,"error"))) -> 0 | E158: =IF($C$153=1,E109,IF($C$153=2,E58,IF($C$153=3,S58,"error"))) -> 0 | F158: 0 | G158: 0 | H158: 0 | I158: 0 | J158: 0 | K158: 0 | L158: 0 | M158: 0
B159: =IF($C$153=1,B110,IF($C$153=2,B59,IF($C$153=3,P59,"error"))) -> 0 | C159: year 2 | D159: 0 | E159: 0 | F159: 0 | G159: 0 | H159: 0 | I159: 0 | J159: 0 | K159: 0 | L159: 0 | M159: 0
B160: 0 | C160: year 3 | D160: 0 | E160: 0 | F160: 0 | G160: 0 | H160: 0 | I160: 0 | J160: 0 | K160: 0 | L160: 0 | M160: 0
B161: 0 | C161: year 4 | D161: 0 | E161: 0 | F161: 0 | G161: 0 | H161: 0 | I161: 0 | J161: 0 | K161: 0 | L161: 0 | M161: 0
B162: 0 | C162: year 5 | D162: 0 | E162: 0 | F162: 0 | G162: 0 | H162: 0 | I162: 0 | J162: 0 | K162: 0 | L162: 0 | M162: 0
B163: 0 | C163: year 6 | D163: 0 | E163: 0 | F163: 0 | G163: 0 | H163: 0 | I163: 0 | J163: 0 | K163: 0 | L163: 0 | M163: 0
B164: 0 | C164: year 7 | D164: 0 | E164: 0 | F164: 0 | G164: 0 | H164: 0 | I164: 0 | J164: 0 | K164: 0 | L164: 0 | M164: 0
B165: 0 | C165: year 8 | D165: 0 | E165: 0 | F165: 0 | G165: 0 | H165: 0 | I165: 0 | J165: 0 | K165: 0 | L165: 0 | M165: 0
B166: 0 | C166: year 9 | D166: 0 | E166: 0 | F166: 0 | G166: 0 | H166: 0 | I166: 0 | J166: 0 | K166: 0 | L166: 0 | M166: 0
B167: 0 | C167: year 10 | D167: 0 | E167: 0 | F167: 0 | G167: 0 | H167: 0 | I167: 0 | J167: 0 | K167: 0 | L167: 0 | M167: 0
C168: TOTAL | D168: 0 | E168: 0 | F168: 0 | G168: 0 | H168: 0 | I168: 0 | J168: 0 | K168: 0 | L168: 0 | M168: 0
B171: Lower bound results: applied | D171: 385 | E171: 115 | F171: 105 | G171: 269000
D172: 0.001 | E172: 5e-05 | F172: 5e-05 | K172: DISCOUNTED
D173: syphilis | E173: gonorrhea | F173: chlamydia | G173: HIV | H173: STD costs | I173: HIV | J173: totcosts | K173: STD costs | L173: HIV costs | M173: tot costs
B174: =IF($C$153=1,B125,IF($C$153=2,B74,IF($C$153=3,P74,"error"))) -> 0 | C174: year 1 | D174: =IF($C$153=1,D125,IF($C$153=2,D74,IF($C$153=3,R74,"error"))) -> 0 | E174: =IF($C$153=1,E125,IF($C$153=2,E74,IF($C$153=3,S74,"error"))) -> 0 | F174: =IF($C$153=1,F125,IF($C$153=2,F74,IF($C$153=3,T74,"error"))) -> 0 | G174: =IF($C$153=1,G125,IF($C$153=2,G74,IF($C$153=3,U74,"error"))) -> 0 | H174: =IF($C$153=1,H125,IF($C$153=2,H74,IF($C$153=3,V74,"error"))) -> 0 | I174: =IF($C$153=1,I125,IF($C$153=2,I74,IF($C$153=3,W74,"error"))) -> 0 | J174: =IF($C$153=1,J125,IF($C$153=2,J74,IF($C$153=3,X74,"error"))) -> 0 | K174: =IF($C$153=1,K125,IF($C$153=2,K74,IF($C$153=3,Y74,"error"))) -> 0 | L174: =IF($C$153=1,L125,IF($C$153=2,L74,IF($C$153=3,Z74,"error"))) -> 0 | M174: =IF($C$153=1,M125,IF($C$153=2,M74,IF($C$153=3,AA74,"error"))) -> 0
B175: =IF($C$153=1,B126,IF($C$153=2,B75,IF($C$153=3,P75,"error"))) -> 0 | C175: year 2 | D175: =IF($C$153=1,D126,IF($C$153=2,D75,IF($C$153=3,R75,"error"))) -> 0 | E175: 0 | F175: 0 | G175: 0 | H175: 0 | I175: 0 | J175: 0 | K175: 0 | L175: 0 | M175: 0
B176: 0 | C176: year 3 | D176: 0 | E176: 0 | F176: 0 | G176: 0 | H176: 0 | I176: 0 | J176: 0 | K176: 0 | L176: 0 | M176: 0
B177: 0 | C177: year 4 | D177: 0 | E177: 0 | F177: 0 | G177: 0 | H177: 0 | I177: 0 | J177: 0 | K177: 0 | L177: 0 | M177: 0
B178: 0 | C178: year 5 | D178: 0 | E178: 0 | F178: 0 | G178: 0 | H178: 0 | I178: 0 | J178: 0 | K178: 0 | L178: 0 | M178: 0
B179: 0 | C179: year 6 | D179: 0 | E179: 0 | F179: 0 | G179: 0 | H179: 0 | I179: 0 | J179: 0 | K179: 0 | L179: 0 | M179: 0
B180: 0 | C180: year 7 | D180: 0 | E180: 0 | F180: 0 | G180: 0 | H180: 0 | I180: 0 | J180: 0 | K180: 0 | L180: 0 | M180: 0
B181: 0 | C181: year 8 | D181: 0 | E181: 0 | F181: 0 | G181: 0 | H181: 0 | I181: 0 | J181: 0 | K181: 0 | L181: 0 | M181: 0
B182: 0 | C182: year 9 | D182: 0 | E182: 0 | F182: 0 | G182: 0 | H182: 0 | I182: 0 | J182: 0 | K182: 0 | L182: 0 | M182: 0
B183: 0 | C183: year 10 | D183: 0 | E183: 0 | F183: 0 | G183: 0 | H183: 0 | I183: 0 | J183: 0 | K183: 0 | L183: 0 | M183: 0
C184: TOTAL | D184: 0 | E184: 0 | F184: 0 | G184: 0 | H184: 0 | I184: 0 | J184: 0 | K184: 0 | L184: 0 | M184: 0
B188: Upper bound results: applied | D188: 1155 | E188: 345 | F188: 315 | G188: 427000
D189: 0.02 | E189: 0.001 | F189: 0.001 | K189: DISCOUNTED
D190: syphilis | E190: gonorrhea | F190: chlamydia | G190: HIV | H190: STD costs | I190: HIV | J190: totcosts | K190: STD costs | L190: HIV costs | M190: tot costs
B191: =IF($C$153=1,B142,IF($C$153=2,B91,IF($C$153=3,P91,"error"))) -> 0 | C191: year 1 | D191: =IF($C$153=1,D142,IF($C$153=2,D91,IF($C$153=3,R91,"error"))) -> 0 | E191: =IF($C$153=1,E142,IF($C$153=2,E91,IF($C$153=3,S91,"error"))) -> 0 | F191: =IF($C$153=1,F142,IF($C$153=2,F91,IF($C$153=3,T91,"error"))) -> 0 | G191: =IF($C$153=1,G142,IF($C$153=2,G91,IF($C$153=3,U91,"error"))) -> 0 | H191: =IF($C$153=1,H142,IF($C$153=2,H91,IF($C$153=3,V91,"error"))) -> 0 | I191: =IF($C$153=1,I142,IF($C$153=2,I91,IF($C$153=3,W91,"error"))) -> 0 | J191: =IF($C$153=1,J142,IF($C$153=2,J91,IF($C$153=3,X91,"error"))) -> 0 | K191: =IF($C$153=1,K142,IF($C$153=2,K91,IF($C$153=3,Y91,"error"))) -> 0 | L191: =IF($C$153=1,L142,IF($C$153=2,L91,IF($C$153=3,Z91,"error"))) -> 0 | M191: =IF($C$153=1,M142,IF($C$153=2,M91,IF($C$153=3,AA91,"error"))) -> 0
B192: =IF($C$153=1,B143,IF($C$153=2,B92,IF($C$153=3,P92,"error"))) -> 0 | C192: year 2 | D192: =IF($C$153=1,D143,IF($C$153=2,D92,IF($C$153=3,R92,"error"))) -> 0 | E192: 0 | F192: 0 | G192: 0 | H192: 0 | I192: 0 | J192: 0 | K192: 0 | L192: 0 | M192: 0
B193: 0 | C193: year 3 | D193: 0 | E193: 0 | F193: 0 | G193: 0 | H193: 0 | I193: 0 | J193: 0 | K193: 0 | L193: 0 | M193: 0
B194: 0 | C194: year 4 | D194: 0 | E194: 0 | F194: 0 | G194: 0 | H194: 0 | I194: 0 | J194: 0 | K194: 0 | L194: 0 | M194: 0
B195: 0 | C195: year 5 | D195: 0 | E195: 0 | F195: 0 | G195: 0 | H195: 0 | I195: 0 | J195: 0 | K195: 0 | L195: 0 | M195: 0
B196: 0 | C196: year 6 | D196: 0 | E196: 0 | F196: 0 | G196: 0 | H196: 0 | I196: 0 | J196: 0 | K196: 0 | L196: 0 | M196: 0
B197: 0 | C197: year 7 | D197: 0 | E197: 0 | F197: 0 | G197: 0 | H197: 0 | I197: 0 | J197: 0 | K197: 0 | L197: 0 | M197: 0
B198: 0 | C198: year 8 | D198: 0 | E198: 0 | F198: 0 | G198: 0 | H198: 0 | I198: 0 | J198: 0 | K198: 0 | L198: 0 | M198: 0
B199: 0 | C199: year 9 | D199: 0 | E199: 0 | F199: 0 | G199: 0 | H199: 0 | I199: 0 | J199: 0 | K199: 0 | L199: 0 | M199: 0
B200: 0 | C200: year 10 | D200: 0 | E200: 0 | F200: 0 | G200: 0 | H200: 0 | I200: 0 | J200: 0 | K200: 0 | L200: 0 | M200: 0
C201: TOTAL | D201: 0 | E201: 0 | F201: 0 | G201: 0 | H201: 0 | I201: 0 | J201: 0 | K201: 0 | L201: 0 | M201: 0
B203: rounded results
B205: Base case results: applied
K206: DISCOUNTED
D207: syphilis | E207: gonorrhea | F207: chlamydia | G207: HIV | H207: STD costs | I207: HIV | J207: totcosts | K207: STD costs | L207: HIV costs | M207: tot costs
B208: =ROUND(B158,4) -> 0 | C208: year 1 | D208: =ROUND(D158,0) -> 0 | E208: =ROUND(E158,0) -> 0 | F208: 0 | G208: =ROUND(G158,1) -> 0 | H208: =ROUND(H158,-3) -> 0 | I208: =ROUND(I158,-3) -> 0 | J208: 0 | K208: 0 | L208: 0 | M208: 0
B209: =ROUND(B159,4) -> 0 | C209: year 2 | D209: =ROUND(D159,0) -> 0 | E209: 0 | F209: 0 | G209: =ROUND(G159,1) -> 0 | H209: =ROUND(H159,-3) -> 0 | I209: 0 | J209: 0 | K209: 0 | L209: 0 | M209: 0
B210: 0 | C210: year 3 | D210: 0 | E210: 0 | F210: 0 | G210: 0 | H210: =ROUND(H160,-3) -> 0 | I210: 0 | J210: 0 | K210: 0 | L210: 0 | M210: 0
B211: 0 | C211: year 4 | D211: 0 | E211: 0 | F211: 0 | G211: 0 | H211: =ROUND(H161,-3) -> 0 | I211: 0 | J211: 0 | K211: 0 | L211: 0 | M211: 0
B212: 0 | C212: year 5 | D212: 0 | E212: 0 | F212: 0 | G212: 0 | H212: =ROUND(H162,-3) -> 0 | I212: 0 | J212: 0 | K212: 0 | L212: 0 | M212: 0
B213: 0 | C213: year 6 | D213: 0 | E213: 0 | F213: 0 | G213: 0 | H213: =ROUND(H163,-3) -> 0 | I213: 0 | J213: 0 | K213: 0 | L213: 0 | M213: 0
B214: 0 | C214: year 7 | D214: 0 | E214: 0 | F214: 0 | G214: 0 | H214: =ROUND(H164,-3) -> 0 | I214: 0 | J214: 0 | K214: 0 | L214: 0 | M214: 0
B215: 0 | C215: year 8 | D215: 0 | E215: 0 | F215: 0 | G215: 0 | H215: =ROUND(H165,-3) -> 0 | I215: 0 | J215: 0 | K215: 0 | L215: 0 | M215: 0
B216: 0 | C216: year 9 | D216: 0 | E216: 0 | F216: 0 | G216: 0 | H216: =ROUND(H166,-3) -> 0 | I216: 0 | J216: 0 | K216: 0 | L216: 0 | M216: 0
B217: 0 | C217: year 10 | D217: 0 | E217: 0 | F217: 0 | G217: 0 | H217: =ROUND(H167,-3) -> 0 | I217: 0 | J217: 0 | K217: 0 | L217: 0 | M217: 0
C218: TOTAL | D218: 0 | E218: 0 | F218: 0 | G218: 0 | H218: =ROUND(H168,-3) -> 0 | I218: 0 | J218: 0 | K218: 0 | L218: 0 | M218: 0
B221: Lower bound results: applied | D221: 385 | E221: 115 | F221: 105 | G221: 269000
D222: 0.001 | E222: 5e-05 | F222: 5e-05 | K222: DISCOUNTED
D223: syphilis | E223: gonorrhea | F223: chlamydia | G223: HIV | H223: STD costs | I223: HIV | J223: totcosts | K223: STD costs | L223: HIV costs | M223: tot costs
B224: =ROUND(B174,4) -> 0 | C224: year 1 | D224: =ROUND(D174,0) -> 0 | E224: =ROUND(E174,0) -> 0 | F224: 0 | G224: =ROUND(G174,1) -> 0 | H224: =ROUND(H174,-3) -> 0 | I224: =ROUND(I174,-3) -> 0 | J224: 0 | K224: 0 | L224: 0 | M224: 0
B225: =ROUND(B175,4) -> 0 | C225: year 2 | D225: =ROUND(D175,0) -> 0 | E225: 0 | F225: 0 | G225: =ROUND(G175,1) -> 0 | H225: =ROUND(H175,-3) -> 0 | I225: 0 | J225: 0 | K225: 0 | L225: 0 | M225: 0
B226: 0 | C226: year 3 | D226: =ROUND(D176,0) -> 0 | E226: 0 | F226: 0 | G226: 0 | H226: =ROUND(H176,-3) -> 0 | I226: 0 | J226: 0 | K226: 0 | L226: 0 | M226: 0
B227: 0 | C227: year 4 | D227: =ROUND(D177,0) -> 0 | E227: 0 | F227: 0 | G227: 0 | H227: =ROUND(H177,-3) -> 0 | I227: 0 | J227: 0 | K227: 0 | L227: 0 | M227: 0
B228: 0 | C228: year 5 | D228: =ROUND(D178,0) -> 0 | E228: 0 | F228: 0 | G228: 0 | H228: =ROUND(H178,-3) -> 0 | I228: 0 | J228: 0 | K228: 0 | L228: 0 | M228: 0
B229: 0 | C229: year 6 | D229: =ROUND(D179,0) -> 0 | E229: 0 | F229: 0 | G229: 0 | H229: =ROUND(H179,-3) -> 0 | I229: 0 | J229: 0 | K229: 0 | L229: 0 | M229: 0
... 19 more rows

Sheet calcs1 (hidden)
A2: Size of population served by STD program (all ages) | B2: =Page2!C13 -> 0 | U2: DIS | V2: =D44 -> 0 | X2: =V2 -> 0 | Y2: starting number of DIS
A3: Reported number of syphilis cases | B3: =Page2!C17 -> 0 | X3: =V12 -> 0 | Y3: change in DIS
A4: Reported number of gonorrhea cases | B4: =Page2!C16 -> 0 | U4: pct change in DIS | V4: =IF(V2=0,0,(V12/V2)) -> 0 | X4: =IF(X2+X3>0,X3,X2) -> 0 | Y4: change in DIS
A5: Reported number of chlamydia cases | B5: =Page2!C15 -> 0 | U5: applied pct change | V5: =IF(V4<-1,-1,IF(V4>1,1,V4)) -> 0
A6: Annual cost of Disease Intervention Specialist (DIS) | B6: 73600
A7: Annual number of STD cases interviewed per DIS | B7: 400 | X7: change in interviews | AA7: max decrease | AB7: max increase
A8: Percentage of syphilis cases interviewed | B8: 0.89 | U8: Interviewed cases | V8: =V9+V10+V11 -> 0 | X8: =X4*D46 -> 0 | Y8: =IF(V12<0,AA8,AB8) -> 0 | AA8: =MAX(-V8,X8) -> 0 | AB8: =MIN(X8,X13) -> 0
A9: Percentage of gonorrhea cases interviewed | B9: 0.17 | U9: =A56 -> interviewed CT cases | V9: =B56 -> 0 | X9: =ROUND(ABS(Y8),0) -> 0
A10: Percentage of chlamydia cases interviewed | B10: 0.12 | U10: =A57 -> interviewed GC cases | V10: 0
A11: number needed to interview to detect new case | B11: =IF(Advanced_options_2!D25 = "",C11,D11) -> 4 | C11: =Advanced_options_2!C25 -> 4 | D11: =Advanced_options_2!D25 -> 0 | U11: interviewed PS/EL cases | V11: 0
A12: Percent change in STDs relative to % change in number of STD cases interviewed | B12: =IF(Advanced_options_2!D8 = "",C12,D12) -> 0.2 | C12: =Advanced_options_2!C8 -> 0.2 | D12: =Advanced_options_2!D8 -> 0 | U12: change in DIS | V12: =B31/D45 -> 0 | W12: =ROUND(ABS(V12),2) -> 0 | X12: uninterviewed cases
A13: Percent increase in STDs per $1 per capita decrease in STD prevention funding | B13: =IF(Advanced_options_2!D9 = "",C13,D13) -> 0.16 | C13: =Advanced_options_2!C9 -> 0.16 | D13: =Advanced_options_2!D9 -> 0 | U13: change in interviews | V13: =IF(B61*V12>X13,X13,IF(B61*V12<-V8,-V8,B61*V12)) -> 0 | W13: =ROUND(ABS(V13),0) -> 0 | X13: =SUM(B3:B5)-SUM(V9:V11) -> 0
A14: β parameter of residual impact, used to estimate new equilibrium STD incidence* | B14: =IF(Advanced_options_2!D10 = "",C14,D14) -> 0.7 | C14: =Advanced_options_2!C10 -> 0.7 | D14: =Advanced_options_2!D10 -> 0 | U14: pct change | V14: =V13/V8 -> 
A15: Annual number of syphilis infections, nationally | B15: =IF(Advanced_options_2!D11 = "",C15,D15) -> 55400 | C15: =Advanced_options_2!C11 -> 55400 | D15: =Advanced_options_2!D11 -> 0 | U15: change in STDs | V15: =IF(W15<-1,-1,W15) -> 0 | W15: =-(B12)*V5 -> 0
A16: Annual number of gonorrhea infections, nationally | B16: =IF(Advanced_options_2!D12 = "",C16,D16) -> 820000 | C16: =Advanced_options_2!C12 -> 820000 | D16: =Advanced_options_2!D12 -> 0
A17: Annual number of chlamydia infections, nationally | B17: =IF(Advanced_options_2!D13 = "",C17,D17) -> 2860000 | C17: =Advanced_options_2!C13 -> 2860000 | D17: =Advanced_options_2!D13 -> 0 | U17: change in interviews
A18: Average lifetime cost per syphilis infection | B18: =IF(Advanced_options_2!D14 = "",C18,D18) -> 770 | C18: =Advanced_options_2!C14 -> 770 | D18: =Advanced_options_2!D14 -> 0 | M18: Actual cases
A19: Average lifetime cost per gonorrhea infection | B19: =IF(Advanced_options_2!D15 = "",C19,D19) -> 230 | C19: =Advanced_options_2!C15 -> 230 | D19: =Advanced_options_2!D15 -> 0 | M19: syphilis | N19: gonorrhea | O19: chlamydia
A20: Average lifetime cost per chlamydia infection | B20: =IF(Advanced_options_2!D16 = "",C20,D20) -> 210 | C20: =Advanced_options_2!C16 -> 210 | D20: =Advanced_options_2!D16 -> 0 | M20: =B34 -> 0 | N20: =B35 -> 0 | O20: =B36 -> 0 | U20: DIS approach
A21: Average lifetime cost per HIV infection (both sexes) | B21: =IF(Advanced_options_2!D17 = "",C21,D21) -> 351000 | C21: =Advanced_options_2!C17 -> 351000 | D21: =Advanced_options_2!D17 -> 0 | F21: DISCOUNTING | I21: funding formula approach
A22: Probability of STD-attributable HIV infection, per syphilis infection | B22: =IF(Advanced_options_2!D18 = "",C22,D22) -> 0.0105 | C22: =Advanced_options_2!C18 -> 0.0105 | D22: =Advanced_options_2!D18 -> 0 | F22: =B28 -> 0.03 | J22: =B33 -> 0
A23: Probability of STD-attributable HIV infection, per gonorrhea infection | B23: =IF(Advanced_options_2!D19 = "",C23,D23) -> 0.0005 | C23: =Advanced_options_2!C19 -> 0.0005 | D23: =Advanced_options_2!D19 -> 0 | M23: syphilis | N23: gonorrhea | O23: chlamydia | P23: HIV | Q23: STD cost | R23: HIV cost | S23: tot cost | Y23: syphilis | Z23: gonorrhea | AA23: chlamydia | AB23: HIV | AC23: STD cost | AD23: HIV cost | AE23: tot cost
A24: Probability of STD-attributable HIV infection, per chlamydia infection | B24: =IF(Advanced_options_2!D20 = "",C24,D24) -> 0.0005 | C24: =Advanced_options_2!C20 -> 0.0005 | D24: =Advanced_options_2!D20 -> 0 | F24: =POWER(1+$F$22,1-H24) -> 1 | H24: 1 | I24: year 1 | J24: 1 | K24: =SUM($J$24:J24) -> 1 | L24: =MAX(K24*$J$22,-1) -> 0 | M24: =$L24*M$20 -> 0 | N24: =$L24*N$20 -> 0 | O24: 0 | P24: =(M24*$B$22)+(N24*$B$23)+(O24*$B$24) -> 0 | Q24: =(M24*$B$18 + N24*$B$19 + O24*$B$20)*F24 -> 0 | R24: =P24*$B$21*F24 -> 0 | S24: =Q24+R24 -> 0 | U24: 1 | V24: year 1 | W24: =K24/$K$33 -> 0.3087205926 | X24: =$V$15*W24 -> 0 | Y24: =$X24*M$20 -> 0 | Z24: =$X24*N$20 -> 0 | AA24: 0 | AB24: =(Y24*$B$22)+(Z24*$B$23)+(AA24*$B$24) -> 0 | AC24: =(Y24*$B$18 + Z24*$B$19 + AA24*$B$20)*F24 -> 0 | AD24: =AB24*$B$21*F24 -> 0 | AE24: =AC24+AD24 -> 0
A25: Reported number of syphilis cases, nationally | B25: =IF(Advanced_options_2!D21 = "",C25,D25) -> 48045 | C25: =Advanced_options_2!C21 -> 48045 | D25: =Advanced_options_2!D21 -> 0 | F25: =POWER(1+$F$22,1-H25) -> 0.9708737864 | H25: 2 | I25: year 2 | J25: =POWER($B$14,H25-1) -> 0.7 | K25: =SUM($J$24:J25) -> 1.7 | L25: =MAX(K25*$J$22,-1) -> 0 | M25: =$L25*M$20 -> 0 | N25: 0 | O25: 0 | P25: =(M25*$B$22)+(N25*$B$23)+(O25*$B$24) -> 0 | Q25: =(M25*$B$18 + N25*$B$19 + O25*$B$20)*F25 -> 0 | R25: =P25*$B$21*F25 -> 0 | S25: =Q25+R25 -> 0 | U25: 2 | V25: year 2 | W25: =K25/$K$33 -> 0.5248250075 | X25: =$V$15*W25 -> 0 | Y25: =$X25*M$20 -> 0 | Z25: 0 | AA25: 0 | AB25: =(Y25*$B$22)+(Z25*$B$23)+(AA25*$B$24) -> 0 | AC25: =(Y25*$B$18 + Z25*$B$19 + AA25*$B$20)*F25 -> 0 | AD25: =AB25*$B$21*F25 -> 0 | AE25: =AC25+AD25 -> 0
A26: Reported number of gonorrhea cases, nationally | B26: =IF(Advanced_options_2!D22 = "",C26,D26) -> 395216 | C26: =Advanced_options_2!C22 -> 395216 | D26: =Advanced_options_2!D22 -> 0 | F26: 0.9425959091 | H26: 3 | I26: year 3 | J26: 0.49 | K26: =SUM($J$24:J26) -> 2.19 | L26: 0 | M26: 0 | N26: 0 | O26: 0 | P26: 0 | Q26: 0 | R26: 0 | S26: 0 | U26: 3 | V26: year 3 | W26: 0.6760980979 | X26: 0 | Y26: 0 | Z26: 0 | AA26: 0 | AB26: 0 | AC26: 0 | AD26: 0 | AE26: 0
A27: Reported number of chlamydia cases, nationally | B27: =IF(Advanced_options_2!D23 = "",C27,D27) -> 1526658 | C27: =Advanced_options_2!C23 -> 1526658 | D27: =Advanced_options_2!D23 -> 0 | F27: 0.9151416594 | H27: 4 | I27: year 4 | J27: 0.343 | K27: =SUM($J$24:J27) -> 2.533 | L27: 0 | M27: 0 | N27: 0 | O27: 0 | P27: 0 | Q27: 0 | R27: 0 | S27: 0 | U27: 4 | V27: year 4 | W27: 0.7819892611 | X27: 0 | Y27: 0 | Z27: 0 | AA27: 0 | AB27: 0 | AC27: 0 | AD27: 0 | AE27: 0
A28: Discount rate | B28: =IF(Advanced_options_2!D24 = "",C28,D28) -> 0.03 | C28: =Advanced_options_2!C24 -> 0.03 | D28: =Advanced_options_2!D24 -> 0 | F28: 0.8884870479 | H28: 5 | I28: year 5 | J28: 0.2401 | K28: =SUM($J$24:J28) -> 2.7731 | L28: 0 | M28: 0 | N28: 0 | O28: 0 | P28: 0 | Q28: 0 | R28: 0 | S28: 0 | U28: 5 | V28: year 5 | W28: 0.8561130754 | X28: 0 | Y28: 0 | Z28: 0 | AA28: 0 | AB28: 0 | AC28: 0 | AD28: 0 | AE28: 0
A29: per cap change | B29: =IF(B31=0,0,B31/B2) -> 0 | F29: 0.8626087844 | H29: 6 | I29: year 6 | J29: 0.16807 | K29: =SUM($J$24:J29) -> 2.94117 | L29: 0 | M29: 0 | N29: 0 | O29: 0 | P29: 0 | Q29: 0 | R29: 0 | S29: 0 | U29: 6 | V29: year 6 | W29: 0.9079997454 | X29: 0 | Y29: 0 | Z29: 0 | AA29: 0 | AB29: 0 | AC29: 0 | AD29: 0 | AE29: 0
A30: per cap change, limited to $2 per capita | B30: =IF(B29<-2,-2,IF(B29>2,2,B29)) -> 0 | F30: 0.8374842567 | H30: 7 | I30: year 7 | J30: 0.117649 | K30: =SUM($J$24:J30) -> 3.058819 | L30: 0 | M30: 0 | N30: 0 | O30: 0 | P30: 0 | Q30: 0 | R30: 0 | S30: 0 | U30: 7 | V30: year 7 | W30: 0.9443204144 | X30: 0 | Y30: 0 | Z30: 0 | AA30: 0 | AB30: 0 | AC30: 0 | AD30: 0 | AE30: 0
A31: change in funding | B31: =B40-B39 -> 0 | F31: 0.8130915113 | H31: 8 | I31: year 8 | J31: 0.0823543 | K31: =SUM($J$24:J31) -> 3.1411733 | L31: 0 | M31: 0 | N31: 0 | O31: 0 | P31: 0 | Q31: 0 | R31: 0 | S31: 0 | U31: 8 | V31: year 8 | W31: 0.9697448827 | X31: 0 | Y31: 0 | Z31: 0 | AA31: 0 | AB31: 0 | AC31: 0 | AD31: 0 | AE31: 0
A32: per capita funding change x coefficient | B32: =-(B30)*B13 -> 0 | F32: 0.7894092343 | H32: 9 | I32: year 9 | J32: 0.05764801 | K32: =SUM($J$24:J32) -> 3.19882131 | L32: 0 | M32: 0 | N32: 0 | O32: 0 | P32: 0 | Q32: 0 | R32: 0 | S32: 0 | U32: 9 | V32: year 9 | W32: 0.9875420105 | X32: 0 | Y32: 0 | Z32: 0 | AA32: 0 | AB32: 0 | AC32: 0 | AD32: 0 | AE32: 0
A33: per capita funding change x coefficient | B33: =B32 -> 0 | F33: 0.7664167323 | H33: 10 | I33: year 10 | J33: 0.040353607 | K33: =SUM($J$24:J33) -> 3.239174917 | L33: 0 | M33: 0 | N33: 0 | O33: 0 | P33: 0 | Q33: 0 | R33: 0 | S33: 0 | U33: 10 | V33: year 10 | W33: 1 | X33: 0 | Y33: 0 | Z33: 0 | AA33: 0 | AB33: 0 | AC33: 0 | AD33: 0 | AE33: 0
A34: Annual number of syphilis infections, program | B34: =(B3/B25)*B15 -> 0 | M34: =SUM(M24:M33) -> 0 | N34: =SUM(N24:N33) -> 0 | O34: 0 | P34: 0 | Q34: 0 | R34: 0 | S34: 0 | Y34: =SUM(Y24:Y33) -> 0 | Z34: =SUM(Z24:Z33) -> 0 | AA34: 0 | AB34: 0 | AC34: 0 | AD34: 0 | AE34: =SUM(AE24:AE33) -> 0
A35: Annual number of gonorrhea infections, program | B35: =(B4/B26)*B16 -> 0
A36: Annual number of chlamydia infections, program | B36: 0
A38: increase | B38: =IF((B40-B39)*10>0,1,0) -> 0 | J38: average approach | K38: syphilis | L38: gonorrhea | M38: chlamydia | N38: HIV | O38: STD cost | P38: HIV cost | Q38: tot cost
A39: =Page3!B10 -> Amount of budget decrease | B39: =Page3!C10 -> 0 | C39: =ABS(B39) -> 0 | I39: =AVERAGE(L24,X24) -> 0 | J39: year 1 | K39: =AVERAGE(M24,Y24) -> 0 | L39: =AVERAGE(N24,Z24) -> 0 | M39: 0 | N39: 0 | O39: 0 | P39: 0 | Q39: 0
A40: =Page3!B13 -> Amount of budget increase | B40: =Page3!C13 -> 0 | C40: =ABS(B40) -> 0 | I40: =AVERAGE(L25,X25) -> 0 | J40: year 2 | K40: =AVERAGE(M25,Y25) -> 0 | L40: 0 | M40: 0 | N40: 0 | O40: 0 | P40: 0 | Q40: 0
C41: =C40-C39 -> 0 | I41: 0 | J41: year 3 | K41: 0 | L41: 0 | M41: 0 | N41: 0 | O41: 0 | P41: 0 | Q41: 0
I42: 0 | J42: year 4 | K42: 0 | L42: 0 | M42: 0 | N42: 0 | O42: 0 | P42: 0 | Q42: 0
I43: 0 | J43: year 5 | K43: 0 | L43: 0 | M43: 0 | N43: 0 | O43: 0 | P43: 0 | Q43: 0
A44: Number of Disease Intervention Specialists (DIS) employed | B44: =Page5!C10 -> 0 | C44: =Page5!D10 -> 0 | D44: =IF(Page5!D10="",B44,C44) -> 0 | I44: 0 | J44: year 6 | K44: 0 | L44: 0 | M44: 0 | N44: 0 | O44: 0 | P44: 0 | Q44: 0
A45: Annual cost per DIS (salary plus fringe benefits)* | B45: =Page5!C11 -> 73600 | C45: =Page5!D11 -> 0 | D45: =IF(Page5!D11="",B45,C45) -> 73600 | I45: 0 | J45: year 7 | K45: 0 | L45: 0 | M45: 0 | N45: 0 | O45: 0 | P45: 0 | Q45: 0
A46: Annual number of STD cases interviewed per DIS | B46: =Page5!C12 -> 400 | C46: =Page5!D12 -> 0 | D46: =IF(Page5!D12="",B46,C46) -> 400 | I46: 0 | J46: year 8 | K46: 0 | L46: 0 | M46: 0 | N46: 0 | O46: 0 | P46: 0 | Q46: 0
A47: Percentage of chlamydia cases interviewed | B47: =Page5!C13 -> 0.12 | C47: =Page5!D13 -> 0 | D47: =IF(Page5!D13="",B47,C47) -> 0.12 | I47: 0 | J47: year 9 | K47: 0 | L47: 0 | M47: 0 | N47: 0 | O47: 0 | P47: 0 | Q47: 0
A48: Percentage of gonorrhea cases interviewed | B48: =Page5!C14 -> 0.17 | C48: =Page5!D14 -> 0 | D48: =IF(Page5!D14="",B48,C48) -> 0.17 | I48: 0 | J48: year 10 | K48: 0 | L48: 0 | M48: 0 | N48: 0 | O48: 0 | P48: 0 | Q48: 0
A49: Percentage of syphilis cases interviewed (Primary, secondary, and early latent) | B49: =Page5!C15 -> 0.89 | C49: =Page5!D15 -> 0 | D49: =IF(Page5!D15="",B49,C49) -> 0.89 | J49: TOTAL | K49: 0 | L49: 0 | M49: 0 | N49: 0 | O49: 0 | P49: 0 | Q49: 0
A52: =Page2!B15 -> Reported number of chlamydia cases | B52: =Page2!C15 -> 0
A53: =Page2!B16 -> Reported number of gonorrhea cases | B53: =Page2!C16 -> 0 | J53: ABSOLUTE VALUES
A54: =Page2!B17 -> Reported number of syphilis cases (Primary, secondary, and early latent) | B54: =Page2!C17 -> 0
J55: FUNDING FORMULA | S55: DIS
A56: interviewed CT cases | B56: =B52*D47 -> 0 | K56: syphilis | L56: gonorrhea | M56: chlamydia | N56: HIV | O56: STD cost | P56: HIV cost | Q56: tot cost | T56: syphilis | U56: gonorrhea | V56: chlamydia | W56: HIV | X56: STD cost | Y56: HIV cost | Z56: tot cost
A57: interviewed GC cases | B57: =B53*D48 -> 0 | I57: =ABS(IFERROR(L24,0)) -> 0 | J57: year 1 | K57: =ABS(IFERROR(M24,0)) -> 0 | L57: =ABS(IFERROR(N24,0)) -> 0 | M57: 0 | N57: 0 | O57: 0 | P57: 0 | Q57: 0 | R57: =ABS(IFERROR(X24,0)) -> 0 | S57: year 1 | T57: =ABS(IFERROR(Y24,0)) -> 0 | U57: =ABS(IFERROR(Z24,0)) -> 0 | V57: 0 | W57: 0 | X57: 0 | Y57: 0 | Z57: 0
A58: interviewed PS/EL cases | B58: 0 | I58: =ABS(IFERROR(L25,0)) -> 0 | J58: year 2 | K58: =ABS(IFERROR(M25,0)) -> 0 | L58: 0 | M58: 0 | N58: 0 | O58: 0 | P58: 0 | Q58: 0 | R58: =ABS(IFERROR(X25,0)) -> 0 | S58: year 2 | T58: =ABS(IFERROR(Y25,0)) -> 0 | U58: 0 | V58: 0 | W58: 0 | X58: 0 | Y58: 0 | Z58: 0
I59: 0 | J59: year 3 | K59: 0 | L59: 0 | M59: 0 | N59: 0 | O59: 0 | P59: 0 | Q59: 0 | R59: 0 | S59: year 3 | T59: 0 | U59: 0 | V59: 0 | W59: 0 | X59: 0 | Y59: 0 | Z59: 0
A60: interviewed cases | B60: =B56+B57+B58 -> 0 | I60: 0 | J60: year 4 | K60: 0 | L60: 0 | M60: 0 | N60: 0 | O60: 0 | P60: 0 | Q60: 0 | R60: 0 | S60: year 4 | T60: 0 | U60: 0 | V60: 0 | W60: 0 | X60: 0 | Y60: 0 | Z60: 0
A61: interviews per DIS | B61: =D46 -> 400 | I61: 0 | J61: year 5 | K61: 0 | L61: 0 | M61: 0 | N61: 0 | O61: 0 | P61: 0 | Q61: 0 | R61: 0 | S61: year 5 | T61: 0 | U61: 0 | V61: 0 | W61: 0 | X61: 0 | Y61: 0 | Z61: 0
I62: 0 | J62: year 6 | K62: 0 | L62: 0 | M62: 0 | N62: 0 | O62: 0 | P62: 0 | Q62: 0 | R62: 0 | S62: year 6 | T62: 0 | U62: 0 | V62: 0 | W62: 0 | X62: 0 | Y62: 0 | Z62: 0
A63: number of DIS (calculated) | B63: =B60/B61 -> 0 | I63: 0 | J63: year 7 | K63: 0 | L63: 0 | M63: 0 | N63: 0 | O63: 0 | P63: 0 | Q63: 0 | R63: 0 | S63: year 7 | T63: 0 | U63: 0 | V63: 0 | W63: 0 | X63: 0 | Y63: 0 | Z63: 0
I64: 0 | J64: year 8 | K64: 0 | L64: 0 | M64: 0 | N64: 0 | O64: 0 | P64: 0 | Q64: 0 | R64: 0 | S64: year 8 | T64: 0 | U64: 0 | V64: 0 | W64: 0 | X64: 0 | Y64: 0 | Z64: 0
A65: Number needed to interview | I65: 0 | J65: year 9 | K65: 0 | L65: 0 | M65: 0 | N65: 0 | O65: 0 | P65: 0 | Q65: 0 | R65: 0 | S65: year 9 | T65: 0 | U65: 0 | V65: 0 | W65: 0 | X65: 0 | Y65: 0 | Z65: 0
I66: 0 | J66: year 10 | K66: 0 | L66: 0 | M66: 0 | N66: 0 | O66: 0 | P66: 0 | Q66: 0 | R66: 0 | S66: year 10 | T66: 0 | U66: 0 | V66: 0 | W66: 0 | X66: 0 | Y66: 0 | Z66: 0
J67: TOTAL | K67: 0 | L67: 0 | M67: 0 | N67: 0 | O67: 0 | P67: 0 | Q67: 0 | S67: TOTAL | T67: 0 | U67: 0 | V67: 0 | W67: 0 | X67: =SUM(X57:X66) -> 0 | Y67: =SUM(Y57:Y66) -> 0 | Z67: 0
A69: =Advanced_options_1!C7 -> Use the average of the two approaches (default) | J69: Average | S69: Applied
K70: syphilis | L70: gonorrhea | M70: chlamydia | N70: HIV | O70: STD cost | P70: HIV cost | Q70: tot cost
A71: =dropdown!B4 -> Use the average of the two approaches (default) | I71: =AVERAGE(I57,R57) -> 0 | J71: year 1 | K71: =AVERAGE(K57,T57) -> 0 | L71: =AVERAGE(L57,U57) -> 0 | M71: 0 | N71: 0 | O71: 0 | P71: 0 | Q71: 0 | S71: =IF($A$75=1,I71,IF($A$75=2,I57,IF($A$75=3,R57,I71))) -> 0 | T71: =IF($A$75=1,J71,IF($A$75=2,J57,IF($A$75=3,S57,J71))) -> year 1 | U71: =IF($A$75=1,K71,IF($A$75=2,K57,IF($A$75=3,T57,K71))) -> 0 | V71: =IF($A$75=1,L71,IF($A$75=2,L57,IF($A$75=3,U57,L71))) -> 0 | W71: =IF($A$75=1,M71,IF($A$75=2,M57,IF($A$75=3,V57,M71))) -> 0 | X71: =IF($A$75=1,N71,IF($A$75=2,N57,IF($A$75=3,W57,N71))) -> 0 | Y71: =IF($A$75=1,O71,IF($A$75=2,O57,IF($A$75=3,X57,O71))) -> 0 | Z71: =IF($A$75=1,P71,IF($A$75=2,P57,IF($A$75=3,Y57,P71))) -> 0 | AA71: =IF($A$75=1,Q71,IF($A$75=2,Q57,IF($A$75=3,Z57,Q71))) -> 0
A72: =dropdown!B5 -> Use the historical formula approach | I72: =AVERAGE(I58,R58) -> 0 | J72: year 2 | K72: =AVERAGE(K58,T58) -> 0 | L72: 0 | M72: 0 | N72: 0 | O72: 0 | P72: 0 | Q72: 0 | S72: 0 | T72: year 2 | U72: 0 | V72: 0 | W72: 0 | X72: 0 | Y72: 0 | Z72: 0 | AA72: 0
A73: =dropdown!B6 -> Use the DIS approach | I73: 0 | J73: year 3 | K73: 0 | L73: 0 | M73: 0 | N73: 0 | O73: 0 | P73: 0 | Q73: 0 | S73: 0 | T73: year 3 | U73: 0 | V73: 0 | W73: 0 | X73: 0 | Y73: 0 | Z73: 0 | AA73: 0
I74: 0 | J74: year 4 | K74: 0 | L74: 0 | M74: 0 | N74: 0 | O74: 0 | P74: 0 | Q74: 0 | S74: 0 | T74: year 4 | U74: 0 | V74: 0 | W74: 0 | X74: 0 | Y74: 0 | Z74: 0 | AA74: 0
A75: =IF(A69=A71,1,IF(A69=A72,2,IF(A69=A73,3,1))) -> 1 | I75: 0 | J75: year 5 | K75: 0 | L75: 0 | M75: 0 | N75: 0 | O75: 0 | P75: 0 | Q75: 0 | S75: 0 | T75: year 5 | U75: 0 | V75: 0 | W75: 0 | X75: 0 | Y75: 0 | Z75: 0 | AA75: 0
I76: 0 | J76: year 6 | K76: 0 | L76: 0 | M76: 0 | N76: 0 | O76: 0 | P76: 0 | Q76: 0 | S76: 0 | T76: year 6 | U76: 0 | V76: 0 | W76: 0 | X76: 0 | Y76: 0 | Z76: 0 | AA76: 0
I77: 0 | J77: year 7 | K77: 0 | L77: 0 | M77: 0 | N77: 0 | O77: 0 | P77: 0 | Q77: 0 | S77: 0 | T77: year 7 | U77: 0 | V77: 0 | W77: 0 | X77: 0 | Y77: 0 | Z77: 0 | AA77: 0
I78: 0 | J78: year 8 | K78: 0 | L78: 0 | M78: 0 | N78: 0 | O78: 0 | P78: 0 | Q78: 0 | S78: 0 | T78: year 8 | U78: 0 | V78: 0 | W78: 0 | X78: 0 | Y78: 0 | Z78: 0 | AA78: 0
I79: 0 | J79: year 9 | K79: 0 | L79: 0 | M79: 0 | N79: 0 | O79: 0 | P79: 0 | Q79: 0 | S79: 0 | T79: year 9 | U79: 0 | V79: 0 | W79: 0 | X79: 0 | Y79: 0 | Z79: 0 | AA79: 0
I80: 0 | J80: year 10 | K80: 0 | L80: 0 | M80: 0 | N80: 0 | O80: 0 | P80: 0 | Q80: 0 | S80: 0 | T80: year 10 | U80: 0 | V80: 0 | W80: 0 | X80: 0 | Y80: 0 | Z80: 0 | AA80: 0
J81: TOTAL | K81: 0 | L81: 0 | M81: 0 | N81: 0 | O81: 0 | P81: 0 | Q81: 0 | S81: =S80 -> 0 | T81: TOTAL | U81: 0 | V81: 0 | W81: 0 | X81: 0 | Y81: 0 | Z81: 0 | AA81: 0

Sheet dropdown (hidden)
B4: Use the average of the two approaches (default)
B5: Use the historical formula approach
B6: Use the DIS approach

Sheet text_inserts (hidden)
A1: =TEXT(D1,"0") -> 0 | B1: =TEXT(D1,"0,000") -> 0,000 | D1: =ABS(calcs1!B31) -> 0 | E1: =IF(D1>1000,B1,A1) -> 0 | F1: ="With a budget cut of $"&E1&", positions for disease intervention specialists will be eliminated, resulting in:" -> With a budget cut of $0, positions for disease intervention specialists will be eliminated, resulting in: | G1: ="With a budget increase of $"&E1&", positions for disease intervention specialists will be increased, resulting in:" -> With a budget increase of $0, positions for disease intervention specialists will be increased, resulting in:
F2: ="• No DIS interviews or effective behavioral counseling for an estimated "&E8&" patients with STDs." -> • No DIS interviews or effective behavioral counseling for an estimated 0 patients with STDs. | G2: ="• Additional DIS interviews or effective behavioral counseling for an estimated "&E8&" patients with STDs." -> • Additional DIS interviews or effective behavioral counseling for an estimated 0 patients with STDs.
F3: • DIS are public health professionals who work to find people diagnosed with syphilis and other STDs. DIS work to find new cases of the disease — and to prevent new ones from happening. | G3: • DIS are public health professionals who work to find people diagnosed with syphilis and other STDs. DIS work to find new cases of the disease — and to prevent new ones from happening.
F4: • In addition to STDs, DIS fight other disease outbreaks and epidemics, including Ebola, flu, anthrax, and SARS—without these DIS, we could be underprepared for emergencies. | G4: • In addition to STDs, DIS fight other disease outbreaks and epidemics, including Ebola, flu, anthrax, and SARS—with additional DIS, we will be better prepared for emergencies.
F5: ="• Since an estimated 1 in "&TEXT(D10,"0")&" DIS interviews identifies a new STD case, an estimated "&E9&" people with syphilis, gonorrhea, or chlamydia will not know they are infected, will not be treated, and will be more likely to spread STDs in their communities." -> • Since an estimated 1 in 4 DIS interviews identifies a new STD case, an estimated 0 people with syphilis, gonorrhea, or chlamydia will not know they are infected, will not be treated, and will be more likely to spread STDs in their communities. | G5: ="• Since an estimated 1 in "&TEXT(D10,"0")&" DIS interviews identifies a new STD case, an estimated "&E9&" people with syphilis, gonorrhea, or chlamydia will become aware that they are infected, will be more likely to be treated, and will be less likely to spread STDs in their communities." -> • Since an estimated 1 in 4 DIS interviews identifies a new STD case, an estimated 0 people with syphilis, gonorrhea, or chlamydia will become aware that they are infected, will be more likely to be treated, and will be less likely to spread STDs in their communities.
C6: budget cut
A7: =TEXT(D7,"0.00") -> 0.00 | B7: =TEXT(D7,"0,000") -> 0,000 | C7: DIS reduction | D7: =calcs1!W12 -> 0 | E7: =IF(D7>1000,B7,A7) -> 0.00 | F7: ="Based on published evidence of the impact of STD prevention programs and the cost of STDs, a budget cut of $"&E1&" will result in:" -> Based on published evidence of the impact of STD prevention programs and the cost of STDs, a budget cut of $0 will result in: | G7: ="Based on published evidence of the impact of STD prevention programs and the cost of STDs, a budget increase of $"&E1&" will result in:" -> Based on published evidence of the impact of STD prevention programs and the cost of STDs, a budget increase of $0 will result in:
A8: =TEXT(D8,"0") -> 0 | B8: =TEXT(D8,"0,000") -> 0,000 | C8: STD reduction | D8: =calcs1!X9 -> 0 | E8: =IF(D8>1000,B8,A8) -> 0 | F8: ="• In the first year alone, there will be an estimated increase of "&E12&" cases of syphilis "&C39&", "&E13&" cases of gonorrhea "&C40&", "&E14&" cases of chlamydia "&C41&", and "&E15&" cases of STD-attributable HIV "&C42&"." -> • In the first year alone, there will be an estimated increase of 0 cases of syphilis (range: 0 to 0), 0 cases of gonorrhea (range: 0 to 0), 0 cases of chlamydia (range: 0 to 0), and 0.0 cases of STD-attributable HIV (range: 0.0 to 0.0). | G8: ="• In the first year alone, there will be an estimated decrease of "&E12&" cases of syphilis "&C39&", "&E13&" cases of gonorrhea "&C40&", "&E14&" cases of chlamydia "&C41&", and "&E15&" cases of STD-attributable HIV "&C42&"." -> • In the first year alone, there will be an estimated decrease of 0 cases of syphilis (range: 0 to 0), 0 cases of gonorrhea (range: 0 to 0), 0 cases of chlamydia (range: 0 to 0), and 0.0 cases of STD-attributable HIV (range: 0.0 to 0.0).
A9: 0 | B9: 0,000 | C9: unaware | D9: =ROUND(D8/D10,0) -> 0 | E9: 0 | F9: ="• Over 10 years, there will be an estimated cumulative increase of "&E18&" cases of syphilis "&C44&", "&E19&" cases of gonorrhea "&C45&", "&E20&" cases of chlamydia "&C46&", and "&E21&" cases of STD-attributable HIV "&C47&"." -> • Over 10 years, there will be an estimated cumulative increase of 0 cases of syphilis (range: 0 to 0), 0 cases of gonorrhea (range: 0 to 0), 0 cases of chlamydia (range: 0 to 0), and 0.0 cases of STD-attributable HIV (range: 0 to 0). | G9: ="• Over 10 years, there will be an estimated cumulative decrease of "&E18&" cases of syphilis "&C44&", "&E19&" cases of gonorrhea "&C45&", "&E20&" cases of chlamydia "&C46&", and "&E21&" cases of STD-attributable HIV "&C47&"." -> • Over 10 years, there will be an estimated cumulative decrease of 0 cases of syphilis (range: 0 to 0), 0 cases of gonorrhea (range: 0 to 0), 0 cases of chlamydia (range: 0 to 0), and 0.0 cases of STD-attributable HIV (range: 0 to 0).
C10: number needed to interview | D10: =calcs1!B11 -> 4 | F10: ="• Over 10 years, there will be an estimated cumulative increase in direct medical costs of $"&E23&" "&C48&" due to increases in STIs and STI-attributable HIV infections." -> • Over 10 years, there will be an estimated cumulative increase in direct medical costs of $0 (range: 0 to 0) due to increases in STIs and STI-attributable HIV infections. | G10: ="• Over 10 years, there will be an estimated cumulative decrease in direct medical costs of $"&E23&" "&C48&" due to decreases in STIs and STI-attributable HIV infections." -> • Over 10 years, there will be an estimated cumulative decrease in direct medical costs of $0 (range: 0 to 0) due to decreases in STIs and STI-attributable HIV infections.
C11: 1 year
A12: =TEXT(D12,"0") -> 0 | B12: =TEXT(D12,"0,000") -> 0,000 | C12: syphilis | D12: =ROUND(Results!D5,0) -> 0 | E12: =IF(D12>1000,B12,A12) -> 0
A13: =TEXT(D13,"0") -> 0 | B13: =TEXT(D13,"0,000") -> 0,000 | C13: gonorrhea | D13: =ROUND(Results!E5,0) -> 0 | E13: =IF(D13>1000,B13,A13) -> 0
A14: =TEXT(D14,"0") -> 0 | B14: 0,000 | C14: chlamydia | D14: =ROUND(Results!F5,0) -> 0 | E14: 0
A15: =TEXT(D15,"0.0") -> 0.0 | B15: =TEXT(D15,"0") -> 0 | C15: STD-attributable HIV | D15: =ROUND(Results!G5,1) -> 0 | E15: =IF(D15>100,B15,A15) -> 0.0
C17: 10 year
A18: =TEXT(D18,"0") -> 0 | B18: =TEXT(D18,"0,000") -> 0,000 | C18: syphilis | D18: =ROUND(Results!D15,0) -> 0 | E18: =IF(D18>1000,B18,A18) -> 0
A19: =TEXT(D19,"0") -> 0 | B19: =TEXT(D19,"0,000") -> 0,000 | C19: gonorrhea | D19: =ROUND(Results!E15,0) -> 0 | E19: =IF(D19>1000,B19,A19) -> 0
A20: =TEXT(D20,"0") -> 0 | B20: 0,000 | C20: chlamydia | D20: =ROUND(Results!F15,0) -> 0 | E20: 0
A21: =TEXT(D21,"0.0") -> 0.0 | B21: =TEXT(D21,"0") -> 0 | C21: STD-attributable HIV | D21: =ROUND(Results!G15,1) -> 0 | E21: =IF(D21>100,B21,A21) -> 0.0
A23: =TEXT(D23,"0") -> 0 | B23: =TEXT(D23,"0,000") -> 0,000 | C23: 10 year cost | D23: =ROUND(Results!J15,-3) -> 0 | E23: =IF(D23>1000,B23,A23) -> 0
C26: syphilis | D26: =IFERROR(bounds!D224,0) -> 0 | E26: =IFERROR(bounds!D241,0) -> 0 | F26: =IF(D26>1000,2,IF(AND(D26<1000,E26>1000),3,1)) -> 1
C27: gonorrhea | D27: =IFERROR(bounds!E224,0) -> 0 | E27: =bounds!E241 -> 0 | F27: =IF(D27>1000,2,IF(AND(D27<1000,E27>1000),3,1)) -> 1
C28: chlamydia | D28: =IFERROR(bounds!F224,0) -> 0 | E28: =bounds!F241 -> 0 | F28: 1
C29: STD-attributable HIV | D29: =IFERROR(bounds!G224,0) -> 0 | E29: =bounds!G241 -> 0
C31: 10 year
C32: syphilis | D32: =bounds!D234 -> 0 | E32: =bounds!D251 -> 0 | F32: =IF(D32>1000,2,IF(AND(D32<1000,E32>1000),3,1)) -> 1
C33: gonorrhea | D33: =bounds!E234 -> 0 | E33: =bounds!E251 -> 0 | F33: =IF(D33>1000,2,IF(AND(D33<1000,E33>1000),3,1)) -> 1
C34: chlamydia | D34: =bounds!F234 -> 0 | E34: =bounds!F251 -> 0 | F34: 1
C35: STD-attributable HIV | D35: =bounds!G234 -> 0 | E35: =bounds!G251 -> 0
C37: 10 year cost | D37: =bounds!M234 -> 0 | E37: =bounds!M251 -> 0 | F37: =IF(D37>1000,2,IF(AND(D37<1000,E37>1000),3,1)) -> 1
C39: =IF(F26=1,E39,IF(F26=2,D39,IF(F26=3,F39,D39))) -> (range: 0 to 0) | D39: ="(range: "&TEXT(D26,"0,000")&" to "&TEXT(E26,"0,000")&")" -> (range: 0,000 to 0,000) | E39: ="(range: "&D26&" to "&E26&")" -> (range: 0 to 0) | F39: ="(range: "&TEXT(D26,"0")&" to "&TEXT(E26,"0,000"&")") -> (range: 0 to 0,000)
C40: =IF(F27=1,E40,IF(F27=2,D40,IF(F27=3,F40,D40))) -> (range: 0 to 0) | D40: ="(range: "&TEXT(D27,"0,000")&" to "&TEXT(E27,"0,000")&")" -> (range: 0,000 to 0,000) | E40: ="(range: "&D27&" to "&E27&")" -> (range: 0 to 0) | F40: ="(range: "&TEXT(D27,"0")&" to "&TEXT(E27,"0,000"&")") -> (range: 0 to 0,000)
C41: (range: 0 to 0) | D41: ="(range: "&TEXT(D28,"0,000")&" to "&TEXT(E28,"0,000")&")" -> (range: 0,000 to 0,000) | E41: ="(range: "&D28&" to "&E28&")" -> (range: 0 to 0) | F41: (range: 0 to 0,000)
C42: =D42 -> (range: 0.0 to 0.0) | D42: ="(range: "&TEXT(D29,"0.0")&" to "&TEXT(E29,"0.0")&")" -> (range: 0.0 to 0.0)
C44: =IF(F32=1,E44,IF(F32=2,D44,IF(F32=3,F44,D44))) -> (range: 0 to 0) | D44: ="(range: "&TEXT(D32,"0,000")&" to "&TEXT(E32,"0,000"&")") -> (range: 0,000 to 0,000) | E44: ="(range: "&D32&" to "&E32&")" -> (range: 0 to 0) | F44: ="(range: "&TEXT(D32,"0")&" to "&TEXT(E32,"0,000"&")") -> (range: 0 to 0,000)
C45: =IF(F33=1,E45,IF(F33=2,D45,IF(F33=3,F45,D45))) -> (range: 0 to 0) | D45: ="(range: "&TEXT(D33,"0,000")&" to "&TEXT(E33,"0,000"&")") -> (range: 0,000 to 0,000) | E45: ="(range: "&D33&" to "&E33&")" -> (range: 0 to 0) | F45: ="(range: "&TEXT(D33,"0")&" to "&TEXT(E33,"0,000"&")") -> (range: 0 to 0,000)
C46: (range: 0 to 0) | D46: ="(range: "&TEXT(D34,"0,000")&" to "&TEXT(E34,"0,000"&")") -> (range: 0,000 to 0,000) | E46: ="(range: "&D34&" to "&E34&")" -> (range: 0 to 0) | F46: (range: 0 to 0,000)
C47: =IF(D35>1000,D47,E47) -> (range: 0 to 0) | D47: ="(range: "&TEXT(D35,"0,000")&" to "&TEXT(E35,"0,000"&")") -> (range: 0,000 to 0,000) | E47: ="(range: "&D35&" to "&E35&")" -> (range: 0 to 0) | F47: (range: 0 to 0,000)
C48: =IF(F37=1,E48,IF(F37=2,D48,IF(F37=3,F48,D48))) -> (range: 0 to 0) | D48: ="(range: "&TEXT(D37,"0,000")&" to "&TEXT(E37,"0,000"&")") -> (range: 0,000 to 0,000) | E48: ="(range: "&D37&" to "&E37&")" -> (range: 0 to 0) | F48: ="(range: "&TEXT(D37,"0")&" to "&TEXT(E37,"0,000"&")") -> (range: 0 to 0,000)
